Cogmind - Beta 12 X4 @@@ ROGUE MODE // 2022.11.30 @ 00:31:00 Player: Runia Result: Destroyed Tau Ceti IV! Performance ------------- Evolutions (9) 4500 Regions Visited (28) 5600 Robots Destroyed (488) 2440 Value Destroyed (25794) 25794 Prototype IDs (285) 5700 Alien Tech Used (10) 2000 Bonus (34627) 34627 TOTAL SCORE: 80661 Bonus ------- High Alert Combat Kills 4503 Follower Combat Kills 3019 Entered Garrisons 1200 Used RIF Installer 4500 Met MAIN.C 5000 Destroyed MAIN.C Shell 5000 Destroyed MAIN.C 10000 Met Architect 300 Started Test 138-B 500 Started Test 138-C 8000 Destroyed A8 300 Destroyed A6 400 Destroyed A2 1000 Win 3000 Friendly Fire -12095 Cogmind --------- Core Integrity 942/1850 Matter 265/300 Energy 1490/1490 System Corruption 0% Temperature Cool (0) Movement Treading (160) Location Subspace Parts ------- > --- POWER (4) -------- Zero-point Reactor Singularity Reactor > --- PROPULSION (6) --- High-density Centrium Heavy Treads High-density Centrium Heavy Treads High-density Centrium Heavy Treads > --- UTILITY (12) ----- Huge Storage Unit Long-range Terrain Scanner Advanced Terrain Scan Processor Experimental Targeting Computer Experimental Core Analyzer Experimental Armor Integrity Analyzer Experimental Weapon Cycler Heavy Regenerative Plating AEGIS Remote Shield Microwarp Drive > --- WEAPON (3) ------- Null Cannon Sigix Broadsword > --- INVENTORY (25) --- Reinforced Quantum Reactor Reinforced Quantum Reactor Zero-point Reactor Enhanced Armored Heavy Treads High-density Centrium Heavy Treads 2N-1CE's Frost Array Advanced Coolant Injector Experimental Energy Well (600) Medium Matter Pod (100) Triangulator Quantum Capacitor Centrium Heavy Armor Plating AEGIS Remote Shield Spacefold Activator Compact HERF Cannon Hypervelocity Multirail Graviton Cannon Perforator Peak State ------------ > --- POWER ------------ Zero-point Reactor Singularity Reactor > --- PROPULSION ------- High-density Centrium Heavy Treads High-density Centrium Heavy Treads High-density Centrium Heavy Treads > --- UTILITY ---------- Huge Storage Unit Long-range Terrain Scanner Advanced Terrain Scan Processor Experimental Targeting Computer Experimental Core Analyzer Experimental Armor Integrity Analyzer Experimental Weapon Cycler Heavy Regenerative Plating AEGIS Remote Shield Microwarp Drive > --- WEAPON ----------- Null Cannon Sigix Broadsword > --- INVENTORY -------- Reinforced Quantum Reactor Reinforced Quantum Reactor Zero-point Reactor Enhanced Armored Heavy Treads High-density Centrium Heavy Treads 2N-1CE's Frost Array Advanced Coolant Injector Experimental Energy Well Medium Matter Pod Triangulator Quantum Capacitor Centrium Heavy Armor Plating AEGIS Remote Shield Spacefold Activator Compact HERF Cannon Hypervelocity Multirail Graviton Cannon Perforator [Rating: 264] Favorites ----------- Power Antimatter Reactor Engine Reinforced Ion Engine Power Core Light Nuclear Core Reactor Antimatter Reactor Propulsion High-density Centrium Heavy Treads Treads High-density Centrium Heavy Treads Leg Flexi-carbon Leg Wheel Armored Wheel Utility Huge Storage Unit Device Quantum Capacitor Storage Huge Storage Unit Processor Experimental Core Analyzer Hackware Relay Coupler [Sentry] Protection Heavy Regenerative Plating Artifact Phase Armor Weapon Sigix Broadsword Energy Gun Small Laser Energy Cannon Null Cannon Ballistic Gun Autogun Ballistic Cannon Graviton Cannon Launcher Rocket Launcher Special Weapon Remote Datajack Impact Weapon Power Maul Slashing Weapon Sigix Broadsword Piercing Weapon Enhanced Force Lance Special Melee Weapon Improved Datajack Build | -11 -10 -10 -9 -9 -9 -8 -8 -8 -8 -8 -7 -7 -7 -7 -6 -6 -5 -5 -4 -4 -3 -3 -2 -2 -2 -1 -1 -1 ------- Run | Scr Mat Min Mat Min Exi Min Mat Gar Mat Gar Fac Was Fac Gar Fac Gar Fac Gar Fac Gar Res Qua Res Tes Sec Acc Com Ac0 Slots Evolved 18 | . . . 2 . . . 2 . . . 2 . . . 2 . 2 . 2 . 2 . 2 . . 2 . . Power 3 | . . . . . . . . . . . . . . . 1 . . . . . . . . . . 2 . . Propulsion 4 | . . . 1 . . . . . . . 1 . . . . . . . 1 . 1 . . . . . . . Utility 10 | . . . 1 . . . 2 . . . 1 . . . 1 . 2 . 1 . 1 . 1 . . . . . Weapon 1 | . . . . . . . . . . . . . . . . . . . . . . . 1 . . . . . Parts Attached 709 | 2 12 6 40 2 3 9 12 37 2 25 33 16 4 28 18 31 7 32 28 30 9 19 43 26 83 41 59 52 Power 48 | . 1 1 3 . . . 2 2 . . . 1 . . 3 2 . 2 2 4 . 1 3 2 2 13 4 . Engine 10 | . 1 1 3 . . . 2 2 . . . . . . . . . . 1 . . . . . . . . . Core 1 | . . . . . . . . . . . . . . . . . . 1 . . . . . . . . . . Reactor 37 | . . . . . . . . . . . . 1 . . 3 2 . 1 1 4 . 1 3 2 2 13 4 . Propulsion 75 | 2 1 1 12 . . 4 2 10 . 1 4 3 . 2 3 . . 7 5 3 1 1 3 2 5 . 3 . Treads 60 | 2 . . 7 . . 4 1 9 . 1 3 3 . 2 2 . . 6 2 3 1 1 3 2 5 . 3 . Leg 1 | . . . . . . . . . . . . . . . . . . 1 . . . . . . . . . . Wheel 14 | . 1 1 5 . . . 1 1 . . 1 . . . 1 . . . 3 . . . . . . . . . Hover . | . . . . . . . . . . . . . . . . . . . . . . . . . . . . . Flight . | . . . . . . . . . . . . . . . . . . . . . . . . . . . . . Utility 265 | . 4 . 5 . 1 1 4 11 2 2 7 4 . 8 4 9 5 12 9 14 5 8 16 10 31 21 32 40 Device 149 | . . . 1 . . . 2 3 2 . 3 1 . 1 1 6 . 1 3 5 . 6 14 7 24 13 20 36 Storage 6 | . 3 . . . . . . . . . . 1 . . . . 1 . . . . . . . . . 1 . Processor 13 | . . . 1 . . . 1 . . . 1 . . . . . . . . . 1 . . . 3 . 6 . Hackware 43 | . . . . . . . . 3 . 1 2 1 . 3 1 . 2 8 3 7 2 . 1 2 1 4 2 . Protection 48 | . 1 . 3 . 1 1 1 5 . 1 1 1 . 4 2 3 2 3 3 2 2 2 . 1 2 2 3 2 Artifact 6 | . . . . . . . . . . . . . . . . . . . . . . . 1 . 1 2 . 2 Weapon 321 | . 6 4 20 2 2 4 4 14 . 22 22 8 4 18 8 20 2 11 12 9 3 9 21 12 45 7 20 12 Energy Gun 1 | . . . 1 . . . . . . . . . . . . . . . . . . . . . . . . . Energy Cannon 62 | . . . . . . . . . . . 4 . . 1 2 7 . 2 4 4 2 4 10 2 4 1 7 8 Ballistic Gun 113 | . 4 2 13 1 2 3 3 10 . 7 10 5 2 8 1 5 1 2 . . . . . 2 18 3 7 4 Ballistic Cannon 4 | . . . . . . . . . . . . . . 1 . 1 . . . . . . . 1 . . 1 . Launcher 48 | . 2 2 6 1 . 1 1 1 . 5 3 . 1 6 3 5 . 2 4 3 1 . . 1 . . . . Special Weapon 52 | . . . . . . . . . . . . . . . . 2 1 3 1 1 . 1 10 5 22 3 3 . Impact Weapon 27 | . . . . . . . . 3 . 7 4 1 1 1 1 . . 2 3 1 . 3 . . . . . . Slashing Weapon 4 | . . . . . . . . . . . . . . . . . . . . . . . 1 1 . . 2 . Piercing Weapon 2 | . . . . . . . . . . . . . . . . . . . . . . 1 . . 1 . . . Special Melee Weapon 8 | . . . . . . . . . . 3 1 2 . 1 1 . . . . . . . . . . . . . Unidentified Prototypes 30 | . . . 2 . . . . . . . 1 . . . . . . . 1 . . 1 2 7 13 1 2 . Corrupted Parts 1 | . . . . . . . . . . . . . . . . . . . . . . . . . . . 1 . System Corruption 8 | . . . . . . . . . . . . . . . . . . . . . . . . . . . 8 . Parts Lost 49 | . . . 3 . . 1 1 6 1 . 2 1 . 4 3 4 . 3 7 5 . 1 2 . 2 . 1 2 Power 8 | . . . . . . . . 2 . . . . . . . 1 . 1 1 1 . . 1 . . . 1 . Propulsion 9 | . . . . . . 1 . 1 . . 1 . . . 2 1 . . 1 2 . . . . . . . . Utility 20 | . . . 2 . . . 1 2 1 . 1 . . 2 1 . . 1 3 1 . 1 . . 2 . . 2 Weapon 12 | . . . 1 . . . . 1 . . . 1 . 2 . 2 . 1 2 1 . . 1 . . . . . Highest Loss Streak 5 | . . . 1 . . 1 1 5 1 . 1 1 . 2 2 3 . 1 3 3 . 1 1 . 1 . 1 2 To Critical Strikes 1 | . . . . . . . . . . . . . . . . . . . . 1 . . . . . . . . Average Slot Usage (%) 82 | . 98 100 99 100 91 100 98 97 99 100 99 88 84 83 78 75 75 84 82 82 79 79 73 75 72 78 69 69 Engine 3 | . 14 14 11 11 11 11 9 8 9 9 7 1 . . . . . . 1 2 . . . . . . . . Reactor 6 | . . . . . . . . . . . . 5 7 7 13 12 11 10 5 7 9 9 7 8 4 14 9 8 Treads 14 | . 26 14 22 22 22 22 18 17 18 18 29 20 15 15 9 3 . 7 9 10 14 14 13 13 13 12 12 12 Wheel 2 | . 1 14 10 11 11 11 9 9 9 9 . . . . 2 6 5 2 4 . . . . . . . . . Device 7 | . . . 1 . . . 14 2 6 . 5 7 7 2 3 7 5 3 7 8 . 2 8 10 10 5 13 13 Storage 6 | . 14 14 11 11 11 11 9 9 9 9 7 7 7 7 6 6 5 5 5 5 4 4 4 4 4 4 4 4 Processor 9 | . . . 9 11 11 11 11 18 18 18 20 15 15 15 13 13 11 1 . . . . . . 4 8 15 18 Hackware 11 | . . . . . . . . 6 9 9 4 7 7 14 9 6 16 32 31 32 37 34 26 25 21 22 2 . Protection 6 | . 12 14 11 11 11 11 8 8 1 8 7 6 7 5 6 6 4 4 3 3 3 3 2 . 4 4 4 5 Energy Cannon 1 | . . . . . . . . . . . 3 . . 3 . 2 5 1 2 1 3 2 1 . . . 3 3 Ballistic Gun 6 | . 26 18 21 22 14 21 17 13 18 14 5 10 13 9 3 1 . . . . . . . . 1 3 . . Special Weapon 1 | . . . . . . . . . . . . . . . . 1 4 4 4 4 4 3 2 3 2 . . . Slashing Weapon 1 | . . . . . . . . . . . . . . . . . . . . . . . 3 3 4 4 3 4 Naked Turns . | . . . . . . . . . . . . . . . . . . . . . . . . . . . . . Heaviest Build 249 | 10 93 95 101 97 97 101 109 107 102 104 111 112 111 130 148 160 146 147 149 131 151 151 183 175 178 231 249 229 Greatest Support 270 | 40 40 10 63 12 12 12 12 40 12 47 87 140 140 140 140 28 28 120 160 160 235 235 235 235 255 255 270 270 Greatest Overweight (x) 10 | . 9 9 10 8 8 8 9 8 8 8 8 1 . . 4 5 5 5 8 1 . . . . . . . . Average Overweight (x) 2 | . 1 9 7 8 7 8 8 7 8 7 1 . . . 2 4 4 3 1 . . . . . . . . . Largest Inventory Capacity 25 | 8 25 25 25 25 25 25 25 25 25 25 25 25 25 25 25 25 25 25 25 25 25 25 25 25 25 25 25 25 Average Capacity 24 | 8 17 25 25 25 25 25 25 25 25 25 25 24 25 25 25 25 25 25 25 25 25 25 25 25 25 25 25 25 Most Carried 25 | 6 20 23 25 25 25 25 25 25 25 25 25 25 25 25 25 25 25 25 25 25 25 25 25 25 25 25 25 25 Average Carried 23 | 4 13 21 24 25 23 23 22 22 24 24 24 21 24 24 22 24 23 24 21 22 23 24 23 23 24 23 24 24 Final Capacity 25 | 8 25 25 25 25 25 25 25 25 25 25 25 25 25 25 25 25 25 25 25 25 25 25 25 25 25 25 25 25 Final Carried 25 | 2 20 23 25 25 23 21 25 25 25 24 24 24 25 25 25 25 25 25 23 25 25 25 25 23 25 25 24 23 Class Distribution -------------------- 40% | Botlord-Mutant 18% | Generator-Mutant 15% | Mutant 13% | Bothacker-Mutant 11% | Scavenger-Mutant Dominant Class ---------------- Mutant | -10/Materials Mutant | -10/Mines Scavenger-Mutant | -9/Materials Mutant | -9/Mines Mutant | -9/Exiles Mutant | -8/Mines Mutant | -8/Materials Scavenger-Mutant | -8/Garrison Scavenger-Mutant | -8/Materials Bothacker-Mutant | -8/Garrison Bothacker-Mutant | -7/Factory Bothacker-Mutant | -7/Waste Scavenger-Mutant | -7/Factory Bothacker-Mutant | -7/Garrison Bothacker-Mutant | -6/Factory Botlord-Mutant | -6/Garrison Botlord-Mutant | -5/Factory Botlord-Mutant | -5/Garrison Botlord-Mutant | -4/Factory Botlord-Mutant | -4/Garrison Botlord-Mutant | -3/Research Botlord-Mutant | -3/Quarantine Botlord-Mutant | -2/Research Botlord-Mutant | -2/Testing Botlord-Mutant | -2/Section 7 Botlord-Mutant | -1/Access Generator-Mutant | -1/Command Generator-Mutant | -1/Access_0 Resources | -11 -10 -10 -9 -9 -9 -8 -8 -8 -8 -8 -7 -7 -7 -7 -6 -6 -5 -5 -4 -4 -3 -3 -2 -2 -2 -1 -1 -1 ----------- Run | Scr Mat Min Mat Min Exi Min Mat Gar Mat Gar Fac Was Fac Gar Fac Gar Fac Gar Fac Gar Res Qua Res Tes Sec Acc Com Ac0 Matter Collected 17131 | 200 431 211 904 43 . 445 629 950 272 493 407 599 143 797 312 797 81 764 646 595 345 184 794 470 2037 732 2231 619 Remotely 291 | . . . . . . . . . . . . . . . . 291 . . . . . . . . . . . . Salvage Created 25320 | . 592 32 1351 28 . 331 612 975 111 599 622 921 331 1491 544 611 108 845 1514 709 620 277 1137 522 3774 2590 2743 1330 Parts 1315 | . 53 . 107 7 . 21 35 52 5 31 34 16 14 71 32 57 3 46 40 13 29 22 49 27 185 147 130 89 Haulers Intercepted 11 | . 2 . 5 . . . 1 . . . 1 . 1 . . . . . . . . . . . . 1 . . Recyclers Shooed 7 | . . . 1 . . . 1 . . . . . 1 . . . . . 1 . . . 2 . . 1 . . Parts Field Recycled . | . . . . . . . . . . . . . . . . . . . . . . . . . . . . . Retrieved Matter . | . . . . . . . . . . . . . . . . . . . . . . . . . . . . . Parts Self-Destructed . | . . . . . . . . . . . . . . . . . . . . . . . . . . . . . Prevented . | . . . . . . . . . . . . . . . . . . . . . . . . . . . . . Kills | -11 -10 -10 -9 -9 -9 -8 -8 -8 -8 -8 -7 -7 -7 -7 -6 -6 -5 -5 -4 -4 -3 -3 -2 -2 -2 -1 -1 -1 ------- Run | Scr Mat Min Mat Min Exi Min Mat Gar Mat Gar Fac Was Fac Gar Fac Gar Fac Gar Fac Gar Res Qua Res Tes Sec Acc Com Ac0 Combat Hostiles Destroyed 396 | . 13 6 34 4 . 9 13 19 1 16 13 3 5 36 15 31 3 14 23 14 4 4 13 4 39 23 20 17 Melee 12 | . . . . . . . . . . . . . . . . . . 2 3 2 . . 3 2 . . . . Guns 192 | . 6 1 17 . . 6 11 17 1 7 6 3 2 13 1 3 1 . . . . . . 2 39 23 19 14 Cannons 65 | . . . . . . . . . . . 2 . . 10 9 11 1 5 6 3 4 4 8 . . . 1 1 AOE 106 | . 7 5 17 4 . 3 2 2 . 8 4 . 2 13 5 17 . 3 8 6 . . . . . . . . Classes Destroyed 25 | . 8 1 1 . . 3 1 1 . . 1 1 . . 1 3 . 1 1 . . . . . 2 . . . Worker 21 | . 2 . 3 1 . . . . . . . . 1 . 2 . . . 2 . . . 1 . 1 6 2 . Builder 13 | . 2 . 1 . . . 1 . . . . . 2 . 1 . . . 2 . 1 . . . . 3 . . Tunneler 2 | . . . . . . 1 . . . . . . . . . . . . 1 . . . . . . . . . Hauler 11 | . 2 . 5 . . . 1 . . . 1 . 1 . . . . . . . . . . . . 1 . . Recycler 21 | . 1 . 3 . . 1 1 . 1 . 1 . 1 . 1 . . . 1 . 2 . 1 2 . 2 3 . Mechanic 3 | . . . . . . . . . . . . . . . . . . . 3 . . . . . . . . . Operator 7 | . 2 . 2 . . . 1 . . . . . . . . . . . . . . 1 . . 1 . . . Watcher 11 | . 2 . . . . . . . . . 1 . . 1 . . . . . . 1 . . . 2 2 2 . Swarmer 78 | . 6 . 19 4 . 4 3 . . 3 4 . 3 7 7 16 . . . 2 . . . . . . . . Cutter 5 | . . . . . . . . . . . . . . . . 2 . 3 . . . . . . . . . . Saboteur 3 | . . . . . . . . . . . . . . . . 2 . . 1 . . . . . . . . . Grunt 109 | . 7 . 6 . . 3 5 10 . 12 4 . . 19 3 2 1 3 9 8 . . 1 1 6 5 4 . Brawler 6 | . . . . . . . . 2 . . . . . 2 . . . 1 1 . . . . . . . . . Duelist 7 | . . . . . . 1 . . . . . . . 1 1 . . . 3 1 . . . . . . . . Protector 2 | . . . . . . . . . . . . . . . 1 . . . 1 . . . . . . . . . Sentry 46 | . . . 9 . . . 3 7 1 1 1 . 1 7 2 2 . . 1 1 1 . . . 8 1 . . Demolisher 1 | . . . . . . . . . . . . . . . . 1 . . . . . . . . . . . . Specialist 12 | . . . . . . . 2 . . . . . . . . . . . . . . . 4 . 4 . 2 . Hunter 29 | . . . . . . 1 . . . . 1 . 1 . . . . 3 2 2 1 . 1 . 7 5 5 . Programmer 70 | . . . . . . . . . . . 3 . . . 1 6 2 4 6 . 2 4 8 2 12 12 8 . Behemoth 2 | . . . . . . . . . . . . . . . . . . 1 . . . . . . . 1 . . Compactor 3 | . . . . . . . . . . . . 3 . . . . . . . . . . . . . . . . S7 Guard 1 | . . . . . . . . . . . . . . . . . . . . . . . . . 1 . . . Enhanced Grunt 10 | . . . . . . . . . . . . . . . . . . . . . . . . . . . . 10 Enhanced Hunter 4 | . . . . . . . . . . . . . . . . . . . . . . . . . . . . 4 Combat Programmer 1 | . . . . . . . . . . . . . . . . . . . . . . . . . . . 1 . Executioner 3 | . . . . . . . . . . . . . . . . . . . . . . . . . 2 . 1 . Fortress 1 | . . . . . . . . . . . . . . . . . . . . . . . . . 1 . . . Protovariant Y 1 | . . . . . . . . . . . . . . . . . . . . . . . . 1 . . . . Assembled 6 | . . 6 . . . . . . . . . . . . . . . . . . . . . . . . . . Thug 1 | . . . . . . . . . . 1 . . . . . . . . . . . . . . . . . . Best Kill Streak 12 | . 8 3 8 5 . 3 3 6 1 6 4 1 10 8 7 8 2 3 6 6 3 2 2 2 4 12 5 7 Combat Bots Only 9 | . 7 3 5 4 . 3 3 6 1 6 4 1 4 8 6 8 2 3 4 7 2 2 2 2 3 9 4 7 Max Kills in Single Turn 6 | . 3 3 4 3 . 2 1 2 1 2 3 1 4 3 2 4 1 2 6 2 1 1 1 1 2 2 2 1 Gunslinging 1 | . . . 1 . . . . . . . . . . . . . . . . . . . . . . . . . Exploded 4 | . 2 3 3 2 . 2 1 2 . 2 3 . 2 3 2 4 . 2 4 2 . . . . . . . . Melee 1 | . . . . . . . . . . . . . . . . . . 1 1 1 . . 1 1 . . . . Uniques/NPCs Destroyed 5 | . . . . . . . . . . . . . . . . . . . . . . . . . . . 2 3 MAIN.C Shell (-1/Command) MAIN.C (-1/Command) A8 (-1/Access_0) A6 (-1/Access_0) A2 (-1/Access_0) Combat | -11 -10 -10 -9 -9 -9 -8 -8 -8 -8 -8 -7 -7 -7 -7 -6 -6 -5 -5 -4 -4 -3 -3 -2 -2 -2 -1 -1 -1 -------- Run | Scr Mat Min Mat Min Exi Min Mat Gar Mat Gar Fac Was Fac Gar Fac Gar Fac Gar Fac Gar Res Qua Res Tes Sec Acc Com Ac0 Damage Taken 31200 | . 253 138 1112 29 . 683 706 1449 43 439 729 51 469 1782 1171 2080 249 1154 2731 1275 284 1144 3588 932 1877 1157 2356 3319 Core 3104 | . 29 . 166 . . 47 63 160 8 7 90 . 41 146 133 179 . 59 223 183 27 93 443 100 219 189 80 419 Absorbed by Shields 6600 | . . . . . . . 120 . . . . . . . . 141 . . 366 233 . . 173 . 878 282 1318 3089 Reduced by Siege Mode 661 | . . . . . . . . . . . . . . 91 . 12 . 32 71 . . 126 140 . 20 . 110 59 Redirected to Core 408 | . . . . . . . . . . . . . . . . . . . . . . . 346 62 . . . . Redirected to Shielding 17 | . . . . . . . . . . . . . . . . . . . . . . . . . . . 17 . Regen/Repaired (Parts) 8146 | . . . . . . . 98 . . . 152 57 132 . 398 256 384 165 1029 . . 343 871 626 784 598 1229 1024 Core Remaining (%) 69 | 100 . 88 . . . 46 . . . 56 . . . 60 . 63 . 94 . 64 . 90 . . 55 . . 50 Volleys Fired 1839 | . 57 9 93 4 . 32 54 70 2 30 32 46 12 85 26 68 16 89 130 45 45 35 101 28 137 61 413 119 Largest 3 | . 2 2 2 2 . 2 2 2 2 2 2 2 2 2 2 2 2 2 1 1 1 1 1 1 1 1 3 1 Hottest 135 | . 60 53 65 46 . 46 46 61 61 61 65 56 51 93 113 133 133 133 113 88 120 120 120 120 120 120 135 130 Shots Fired 2343 | . 108 13 174 8 1 62 105 134 4 48 44 93 24 143 34 86 23 93 131 46 46 37 100 28 136 61 442 119 Gun 1138 | . 102 9 162 6 1 60 101 133 4 39 26 93 23 86 9 18 7 16 . . . . . 7 78 46 88 24 Cannon 846 | . . . . . . . . . . . 15 . . 42 22 61 10 30 66 22 29 37 69 7 6 2 333 95 Launcher 91 | . 6 4 12 2 . 2 4 1 . 9 3 . 1 15 3 7 . 2 11 8 . . . 1 . . . . Special 268 | . . . . . . . . . . . . . . . . . 6 45 54 16 17 . 31 13 52 13 21 . Kinetic 1246 | . 93 9 161 6 1 60 101 133 4 39 26 93 23 86 21 35 7 16 . . . . . 7 78 46 177 24 Thermal 747 | . 9 . . . . . . . . . 15 . . 42 10 41 10 33 54 . 29 37 66 7 36 12 255 91 Explosive 91 | . 6 4 12 2 . 2 4 1 . 9 3 . 1 15 3 7 . 2 11 8 . . . 1 . . . . Electromagnetic 52 | . . . 1 . . . . . . . . . . . . 3 . 7 12 22 . . 3 . . . . 4 Robot Hit Streak 29 | . 9 3 22 8 . 14 13 20 2 8 9 19 10 16 10 10 14 12 13 7 7 17 17 9 22 23 29 27 Robot Miss Streak 7 | . 7 1 3 . . 2 5 2 1 2 3 2 1 3 1 3 2 5 2 4 2 2 3 1 4 7 5 4 Penetration Max 2 | . . . . . . . . 1 . 1 1 1 1 1 . . . . . . . . . 1 2 2 2 1 Secondary Targets 6 | . . . 1 . . . . 2 . 1 . 2 . . . . . . . . . . . . . . . . Max Gunslinging Chain 1 | . . . 1 . . . . 1 . 1 . 1 . . . . . . . . . . . . . . . . Capacitor 329 | . . . . . . . . . . . . . . . . . . . . . . . 66 . . . 244 19 Shots Hit Robots 1610 | . 59 6 117 4 . 47 71 89 2 38 38 89 26 101 31 42 21 76 107 30 31 15 93 37 138 68 148 86 Core Hits 917 | . 41 12 67 4 . 18 32 38 3 27 26 17 11 74 33 55 8 22 42 27 11 6 13 9 93 67 104 57 Critical Kills 122 | . . . 1 . . . . . . . . . 1 . . . . . 3 1 . . 2 2 43 34 20 15 Critical Parts Destroyed 112 | . . . 1 . . 1 . 2 . 2 1 . 1 . . . . 1 2 . . . . 4 39 25 26 7 Critical Strikes 261 | . . . 2 . . 1 . 2 . 2 1 . 2 . 2 1 . 1 5 1 . . 5 9 97 60 47 23 Meltdown 5 | . . . . . . . . . . . . . . . . . . . 2 . . . 2 . . . . 1 Destroy 230 | . . . 2 . . 1 . 2 . 1 . . 1 . . . . . . . . . . 6 89 60 46 22 Blast 3 | . . . . . . . . . . . . . . . 2 1 . . . . . . . . . . . . Smash 8 | . . . . . . . . . . 1 1 . 1 . . . . 1 3 1 . . . . . . . . Sever 12 | . . . . . . . . . . . . . . . . . . . . . . . 3 3 5 . 1 . Impale 3 | . . . . . . . . . . . . . . . . . . . . . . . . . 3 . . . Melee Attacks 386 | . . . . . . . . 5 . 20 18 10 6 2 7 . . 12 20 18 . 9 41 41 48 37 92 . Impact 103 | . . . . . . . . 5 . 17 14 . 6 1 4 . . 12 20 18 . 6 . . . . . . Slashing 244 | . . . . . . . . . . . . . . . . . . . . . . . 41 41 33 37 92 . Piercing 18 | . . . . . . . . . . . . . . . . . . . . . . 3 . . 15 . . . Sneak Attacks 80 | . . . . . . . . . . 6 6 1 3 . 6 . . 9 2 4 . . 4 5 19 10 5 . Combat Hostiles 20 | . . . . . . . . . . 4 . 1 . . . . . 9 . 4 . . . 2 . . . . Follow-up Attacks 2 | . . . . . . . . . . . . . . . . . . . . . . . . . 2 . . . Damage Inflicted 57967 | . 1155 308 2613 422 . 877 1497 1573 61 1901 1474 1572 951 3637 2206 3187 569 2359 4675 1944 880 825 4321 2051 3470 2467 6359 4613 Guns 14977 | . 585 39 1511 60 . 688 1016 1432 61 622 457 1572 335 1322 151 294 189 329 . . . . . 116 984 715 2171 328 Cannons 16888 | . . . . . . . . . . . 269 . . 706 1067 1482 380 802 1988 561 880 825 2303 . . . 1340 4285 Explosions 11688 | . 516 269 1077 362 . 189 481 141 . 923 407 . 213 1609 700 1411 . 185 2270 903 . . . 32 . . . . Melee 13539 | . . . . . . . . . . 356 341 . 403 . 288 . . 874 379 480 . . 1989 1890 2227 1589 2723 . Ramming 206 | . 54 . 25 . . . . . . . . . . . . . . . 38 . . . 29 13 47 . . . Kinetic 16438 | . 529 39 1489 60 . 688 1016 1432 61 622 457 1572 335 1322 894 1090 189 329 . . . . . 116 984 715 2171 328 Thermal 15970 | . 56 . . . . . . . . . 269 . . 706 324 686 380 836 2804 . 880 825 2186 . 212 163 1465 4178 Explosive 10523 | . 516 269 1077 362 . 189 481 141 . 923 407 . 213 1609 675 1411 . 185 1130 903 . . . 32 . . . . Electromagnetic 1291 | . . . 22 . . . . . . . . . . . 25 . . 135 324 561 . . 117 . . . . 107 Impact 3121 | . . . . . . . . . . 356 341 . 403 . 288 . . 874 379 480 . . . . . . . . Slashing 9121 | . . . . . . . . . . . . . . . . . . . . . . . 1989 1890 930 1589 2723 . Piercing 1297 | . . . . . . . . . . . . . . . . . . . . . . . . . 1297 . . . Highest Corruption 31 | . . . 3 3 3 3 7 7 7 1 1 1 1 1 6 12 2 4 4 4 1 13 23 26 31 . 8 . Average Corruption 8 | . . . 3 3 3 3 6 7 4 1 1 1 1 1 5 8 1 2 2 4 1 6 11 25 27 . 2 . Corruption Purged 18 | . . . . . . . . . 6 1 . . . . . . . . . . . . . . . . 11 . Corruption Blocked 60 | . . . . . . . . . . . . . . . . . . . . . . . . 20 40 . . . Effects 711 | . . . 26 12 11 10 28 62 7 . 6 6 5 13 25 64 2 24 25 32 4 29 60 64 171 . 25 . Message Errors 182 | . . . 7 1 5 5 6 13 3 . 2 . . 5 4 19 1 8 6 6 . 3 16 22 43 . 7 . Matter Fused 170 | . . . 3 4 2 2 8 15 2 . 1 2 1 5 6 12 1 3 6 8 1 8 17 16 39 . 8 . Heat Flow Errors 78 | . . . 5 1 1 1 3 6 . . 2 . . . 4 9 . . 4 5 . 3 4 9 19 . 2 . Energy Discharges 82 | . . . 2 1 1 . 2 11 . . 1 2 . . 4 5 . 5 1 6 1 3 6 6 21 . 4 . Parts Rejected 13 | . . . . . . 1 . 1 . . . . 1 1 . . . 1 1 . . 1 3 . 3 . . . Data Loss (minor) 93 | . . . 8 2 . . 3 7 2 . . 1 2 . 3 9 . 4 5 5 . 6 8 5 22 . 1 . Data Loss (major) 33 | . . . 1 1 1 . 1 4 . . . . . . 1 4 . 2 1 . 1 3 1 2 9 . 1 . Misfires 27 | . . . . 2 1 . 3 3 . . . 1 1 . 1 4 . 1 1 1 1 2 1 . 3 . 1 . Alerts 10 | . . . . . . 1 . . . . . . . . 2 1 . . . 1 . . . 1 3 . 1 . Misdirections 10 | . . . . . . . . . . . . . . . . . . . . . . . 2 3 5 . . . Weapon Failures 13 | . . . . . . . 2 2 . . . . . 2 . 1 . . . . . . 2 . 4 . . . Overload Shots . | . . . . . . . . . . . . . . . . . . . . . . . . . . . . . Overflow Damage 3781 | . . 5 20 74 . 36 5 . . 81 238 . 201 40 148 58 68 308 457 29 32 36 676 299 . . 753 217 Projectiles 840 | . . . . . . . . . . . 15 . . 14 55 58 68 25 37 . 32 36 283 . . . . 217 Explosions 533 | . . 5 20 74 . 36 5 . . 15 . . 41 26 44 . . . 267 . . . . . . . . . Melee 2408 | . . . . . . . . . . 66 223 . 160 . 49 . . 283 153 29 . . 393 299 . . 753 . Knockbacks 14 | . . . . . . . . . . . . . 2 . 4 . . 5 2 1 . . . . . . . . Impact 10 | . . . . . . . . . . . . . 2 . . . . 5 2 1 . . . . . . . . Kinetic 4 | . . . . . . . . . . . . . . . 4 . . . . . . . . . . . . . Secondary . | . . . . . . . . . . . . . . . . . . . . . . . . . . . . . Self-Inflicted Damage 829 | . 6 66 23 . . . . . . 19 41 . . 84 147 183 . 53 146 61 . . . . . . . . Shots 23 | . . 3 2 . . . . . . 1 1 . . 3 3 4 . 1 3 2 . . . . . . . . Rammed 18 | . 6 . 3 . . . . . . . . . . . . . . . 2 . . . 3 1 3 . . . Targets Rammed 18 | . 6 . 3 . . . . . . . . . . . . . . . 2 . . . 3 1 3 . . . Kicked . | . . . . . . . . . . . . . . . . . . . . . . . . . . . . . Crushed . | . . . . . . . . . . . . . . . . . . . . . . . . . . . . . Highest Temperature 424 | . 40 18 262 115 196 277 261 257 . 144 217 . 22 204 237 378 126 409 237 424 372 362 291 282 262 160 246 46 Average Temperature 75 | . 8 6 52 34 92 44 90 52 . 32 41 . 9 52 83 116 58 178 86 83 69 77 94 108 88 31 53 46 Received Heat Transfer 4488 | . 72 . 381 . . 234 308 639 . 252 66 . 84 663 273 245 . 45 304 208 54 . 108 126 129 9 56 232 Effects 24 | . . . 1 . . . . . . . . . . . 1 3 . 2 . 4 4 6 . 1 2 . . . Shutdowns 4 | . . . . . . . . . . . . . . . . 1 . 1 . . 1 1 . . . . . . Energy Bleed 8 | . . . 1 . . . . . . . . . . . . 1 . . . 1 2 3 . . . . . . Interference 8 | . . . . . . . . . . . . . . . 1 1 . . . 2 . 1 . 1 2 . . . Matter Decay 2 | . . . . . . . . . . . . . . . . . . . . . 1 1 . . . . . . Short Circuit 1 | . . . . . . . . . . . . . . . . . . . . 1 . . . . . . . . Damage (minor) 1 | . . . . . . . . . . . . . . . . . . 1 . . . . . . . . . . Siege Activations 26 | . . . . . . . . . . . . . . 3 . 1 . 1 1 . . 2 5 . 2 2 4 5 Total Turns 522 | . . . . . . . . . . . . . . 77 . 6 . 14 43 . . 64 145 . 24 20 57 72 Longest Duration 103 | . . . . . . . . . . . . . . 36 . 6 . 14 43 . . 46 103 . 13 14 24 39 Robots Corrupted 6 | . . . . . . . . . . . . . . . . . . 1 2 2 . . . . . . . 1 Combat Hostiles 6 | . . . . . . . . . . . . . . . . . . 1 2 2 . . . . . . . 1 Parts Fried 31 | . . . . . . . . . . . 2 . 2 . 1 . . 7 5 4 . . 1 . . . 2 7 Impact Corruptions 31 | . . . . . . . . . . 2 5 . 7 . 2 . . 9 5 1 . . . . . . . . Robots Melted 8 | . . . . . . . . . . . . . . . . . 1 . 4 . . . 2 . . . . 1 Combat Hostiles 8 | . . . . . . . . . . . . . . . . . 1 . 4 . . . 2 . . . . 1 Parts Melted 28 | . . . . . . . . . 2 . . . . 3 . 1 . 1 8 1 . 1 8 . 1 . 2 . Heat Transferred 11489 | . 125 . . . . . . . . . 333 . . 962 370 683 333 925 2085 . 740 592 1702 . 457 173 586 1423 Parts Sabotaged 3 | . . . . . . . . . . . . . . . . 2 . . 1 . . . . . . . . . Parts Stolen . | . . . . . . . . . . . . . . . . . . . . . . . . . . . . . Parts Stripped . | . . . . . . . . . . . . . . . . . . . . . . . . . . . . . Power Chain Reactions 1 | . . . . . . . . . . . . . . . . . . . 1 . . . . . . . . . Missiles Intercepted . | . . . . . . . . . . . . . . . . . . . . . . . . . . . . . Alert | -11 -10 -10 -9 -9 -9 -8 -8 -8 -8 -8 -7 -7 -7 -7 -6 -6 -5 -5 -4 -4 -3 -3 -2 -2 -2 -1 -1 -1 ------- Run | Scr Mat Min Mat Min Exi Min Mat Gar Mat Gar Fac Was Fac Gar Fac Gar Fac Gar Fac Gar Res Qua Res Tes Sec Acc Com Ac0 Peak Influence 1705 | . 449 30 852 405 . 167 233 964 676 1340 818 214 158 1388 877 1502 922 1705 1076 1390 811 244 406 254 565 573 644 . Initial 894 | . . 18 . 262 . . 33 78 469 439 703 194 . 110 728 296 788 645 894 698 781 150 2 211 3 280 336 . Average 477 | . 175 18 533 313 . 64 93 498 565 887 643 100 26 764 609 926 854 1204 872 1094 321 84 134 87 213 326 449 . Maximum Alert Level 5 | . 2 . 3 2 . . 1 3 2 4 3 1 . 4 3 4 3 5 3 4 3 1 2 1 2 2 4 . Low Security (%) 26 | 100 66 100 2 . . 100 91 14 . . . 92 100 7 . . . . . . 27 81 76 84 54 17 . . Level 1 13 | . 26 . 6 45 . . 8 27 . . . 7 . 20 30 6 . . . . 36 18 22 15 25 52 5 . Level 2 17 | . 7 . 74 54 . . . 24 100 29 69 . . 9 19 12 . 2 . 4 33 . . . 19 29 10 . Level 3 27 | . . . 16 . . . . 33 . 51 30 . . 43 49 47 100 34 100 31 2 . . . . . 49 . Level 4 14 | . . . . . . . . . . 19 . . . 19 . 33 . 55 . 63 . . . . . . 33 . Level 5 . | . . . . . . . . . . . . . . . . . . 7 . . . . . . . . . . High Security . | . . . . . . . . . . . . . . . . . . . . . . . . . . . . . Max Security . | . . . . . . . . . . . . . . . . . . . . . . . . . . . . . Squads Dispatched 79 | . 3 . 6 . . . 4 . 1 . 2 . 1 . 5 . 2 . 17 . 1 3 10 2 11 5 6 . Investigation 10 | . . . 1 . . . . . 1 . . . 1 . 1 . 1 . 2 . . . . . 1 1 1 . Extermination 20 | . . . . . . . . . . . 2 . . . 1 . . . 2 . . 2 3 1 4 2 3 . Reinforcement 34 | . 3 . 4 . . . 3 . . . . . . . 2 . 1 . 4 . 1 1 4 1 6 2 2 . Assault 11 | . . . 1 . . . . . . . . . . . 1 . . . 8 . . . 1 . . . . . Garrison 4 | . . . . . . . 1 . . . . . . . . . . . 1 . . . 2 . . . . . Intercept . | . . . . . . . . . . . . . . . . . . . . . . . . . . . . . Searches Triggered . | . . . . . . . . . . . . . . . . . . . . . . . . . . . . . Construction Impeded 5 | . . . . . . . . . . . . . . . 1 . . . 3 . . . . . . 1 . . Haulers Reinforced 2 | . . . . . . . . . . . . . . . . . . . . . . . . . 1 1 . . Active Scanning Responses . | . . . . . . . . . . . . . . . . . . . . . . . . . . . . . Cargo Convoy Interrupts 2 | . . . . . . . . . . . . . . . . . . . 1 . . . 1 . . . . . Stealth | -11 -10 -10 -9 -9 -9 -8 -8 -8 -8 -8 -7 -7 -7 -7 -6 -6 -5 -5 -4 -4 -3 -3 -2 -2 -2 -1 -1 -1 --------- Run | Scr Mat Min Mat Min Exi Min Mat Gar Mat Gar Fac Was Fac Gar Fac Gar Fac Gar Fac Gar Res Qua Res Tes Sec Acc Com Ac0 Distress Signals 52 | . 3 . 3 . . . 3 . . . 1 . . 1 . . . . 2 . 3 1 . . 1 2 32 . Communications Jammed 99 | . . . . . . . . . . . . . 3 . . . . . . . . . 43 52 1 . . . Distress Signals 97 | . . . . . . . . . . . . . 1 . . . . . . . . . 43 52 1 . . . Times Spotted 749 | . 39 6 60 4 . 13 25 23 4 24 18 6 6 42 22 36 6 32 79 27 19 19 56 15 57 38 37 36 Peak Tracking Total 16 | . 6 3 6 4 . 3 4 7 2 7 5 2 4 8 7 7 2 6 16 5 3 3 8 3 4 4 6 8 Tactical Retreats 34 | . 1 . 1 . . 1 . 2 . 1 . . . 7 1 2 . . 5 1 1 . 1 2 5 1 1 1 Traps | -11 -10 -10 -9 -9 -9 -8 -8 -8 -8 -8 -7 -7 -7 -7 -6 -6 -5 -5 -4 -4 -3 -3 -2 -2 -2 -1 -1 -1 ------- Run | Scr Mat Min Mat Min Exi Min Mat Gar Mat Gar Fac Was Fac Gar Fac Gar Fac Gar Fac Gar Res Qua Res Tes Sec Acc Com Ac0 Traps Triggered 48 | . . . 2 . . . 4 6 . 4 1 . . 3 2 3 . 10 2 1 . 2 2 1 . 4 1 . Indirectly . | . . . . . . . . . . . . . . . . . . . . . . . . . . . . . Trap Hack Attempts 1 | . . . . . . . . . . 1 . . . . . . . . . . . . . . . . . . Triggered . | . . . . . . . . . . . . . . . . . . . . . . . . . . . . . Disarmed 7 | . . . . . . . 6 . . 1 . . . . . . . . . . . . . . . . . . Reprogrammed . | . . . . . . . . . . . . . . . . . . . . . . . . . . . . . Reused . | . . . . . . . . . . . . . . . . . . . . . . . . . . . . . Traps Extracted . | . . . . . . . . . . . . . . . . . . . . . . . . . . . . . Installed . | . . . . . . . . . . . . . . . . . . . . . . . . . . . . . Triggered 2 | . . . . . . . . . . . . . . . . . . . . . . . 1 . 1 . . . Machines | -11 -10 -10 -9 -9 -9 -8 -8 -8 -8 -8 -7 -7 -7 -7 -6 -6 -5 -5 -4 -4 -3 -3 -2 -2 -2 -1 -1 -1 ---------- Run | Scr Mat Min Mat Min Exi Min Mat Gar Mat Gar Fac Was Fac Gar Fac Gar Fac Gar Fac Gar Res Qua Res Tes Sec Acc Com Ac0 Machines Disabled 76 | . 1 . 3 . . 1 2 1 . 5 1 . . 3 4 3 . 5 9 3 1 6 1 7 10 . 6 4 Max in Single Turn 3 | . 1 . 1 . . . 1 1 . 1 1 . . 1 3 1 . 1 2 1 1 1 1 1 1 . 2 1 Garrison Access 10 | . . . . . . . . . . . . . . . 1 . . . . . 1 . 3 1 1 3 . . Garrison Relay 13 | . . . . . . . . 1 . 3 . . . 2 . 2 . 3 . 2 . . . . . . . . Machines Sabotaged . | . . . . . . . . . . . . . . . . . . . . . . . . . . . . . Overloaded Fab Kills . | . . . . . . . . . . . . . . . . . . . . . . . . . . . . . Hacking | -11 -10 -10 -9 -9 -9 -8 -8 -8 -8 -8 -7 -7 -7 -7 -6 -6 -5 -5 -4 -4 -3 -3 -2 -2 -2 -1 -1 -1 --------- Run | Scr Mat Min Mat Min Exi Min Mat Gar Mat Gar Fac Was Fac Gar Fac Gar Fac Gar Fac Gar Res Qua Res Tes Sec Acc Com Ac0 Machines Accessed 106 | . 4 . 5 . 1 . 5 4 1 3 4 . 3 3 6 1 1 3 7 2 3 7 5 6 19 10 2 1 Terminals 72 | . 4 . 4 . . . 3 4 . 3 3 . 1 3 2 1 . 3 4 2 2 6 1 3 14 7 2 . Fabricators 5 | . . . . . . . . . . . . . 1 . 1 . . . 2 . . . 1 . . . . . Repair Stations 7 | . . . . . . . 1 . . . . . . . 1 . . . . . . 1 1 2 1 . . . Recycling Units 1 | . . . . . . . . . . . 1 . . . . . . . . . . . . . . . . . Scanalyzers 4 | . . . 1 . . . . . . . . . . . . . . . . . . . . . 3 . . . Garrison Access 15 | . . . . . . . 1 . 1 . . . 1 . 2 . 1 . 1 . 1 . 2 1 1 3 . . Total Hacks 217 | . 11 . 13 . 1 . 15 7 2 5 15 . 6 7 10 1 2 6 18 2 5 19 12 10 30 14 2 4 Successful 113 | . 5 . 8 . 1 . 7 3 2 2 9 . 6 3 7 1 2 2 6 2 4 12 7 2 12 6 . 4 Failed 104 | . 6 . 5 . . . 8 4 . 3 6 . . 4 3 . . 4 12 . 1 7 5 8 18 8 2 . Catastrophic 26 | . . . . . . . 1 1 . 1 . . . 1 1 . . . 4 . 1 1 2 4 6 3 . . Database Lockouts . | . . . . . . . . . . . . . . . . . . . . . . . . . . . . . Manual 65 | . 10 . 4 . . . 6 . 1 1 7 . 3 2 3 . 1 . 9 . 1 5 3 1 6 1 1 . Terminals 156 | . 11 . 10 . . . 12 7 . 5 10 . 3 7 3 1 . 6 12 2 4 17 5 5 24 10 2 . Fabricators 11 | . . . . . . . . . . . . . 1 . 3 . . . 5 . . . 2 . . . . . Repair Stations 14 | . . . . . . . 2 . . . . . . . 1 . . . . . . 2 3 4 2 . . . Recycling Units 5 | . . . . . . . . . . . 5 . . . . . . . . . . . . . . . . . Scanalyzers 6 | . . . 3 . . . . . . . . . . . . . . . . . . . . . 3 . . . Garrison Access 20 | . . . . . . . 1 . 2 . . . 2 . 3 . 2 . 1 . 1 . 2 1 1 4 . . Terminal Hacks 60 | . 4 . 5 . 1 . 3 3 . 2 5 . 1 3 1 1 . 2 3 2 2 6 2 1 7 2 . 4 Record 2 | . . . . . 1 . . . . . . . . . . . . . . . 1 . . . . . . . Part Schematic 1 | . 1 . . . . . . . . . . . . . . . . . . . . . . . . . . . Robot Schematic 1 | . 1 . . . . . . . . . . . . . . . . . . . . . . . . . . . Prototype ID Bank 9 | . 1 . 2 . . . 1 . . . 2 . . . . . . . 1 . . 2 . . . . . . Open Door 6 | . . . . . . . . 1 . . . . . . . . . . . . . . . . 4 1 . . Branch Access Points 2 | . . . . . . . . . . . . . . . . . . . 1 . . . 1 . . . . . Emergency Access Points 6 | . . . . . . . . 1 . 1 . . . 1 . 1 . 1 . 1 . . . . . . . . Terminal Index 2 | . 1 . . . . . . . . . . . . . . . . . . . . 1 . . . . . . Alert Level 1 | . . . 1 . . . . . . . . . . . . . . . . . . . . . . . . . Unreport Threat 7 | . . . 1 . . . . . . . . . . . 1 . . . 1 . 1 . . 1 2 . . . Locate Traps 3 | . . . . . . . . . . . 2 . 1 . . . . . . . . . . . . . . . Disarm Traps 1 | . . . . . . . 1 . . . . . . . . . . . . . . . . . . . . . Hauler Manifests 1 | . . . 1 . . . . . . . . . . . . . . . . . . . . . . . . . Zone Layout 8 | . . . . . . . 1 . . . 1 . . . . . . . . . . 3 1 . 1 1 . . Garrison Registry 4 | . . . . . . . . 1 . 1 . . . 1 . . . . . 1 . . . . . . . . Security Stations 2 | . . . . . . . . . . . . . . 1 . . . 1 . . . . . . . . . . Gate Test 138-A 1 | . . . . . . . . . . . . . . . . . . . . . . . . . . . . 1 Gate Test 138-B 1 | . . . . . . . . . . . . . . . . . . . . . . . . . . . . 1 Gate Test 138-C 2 | . . . . . . . . . . . . . . . . . . . . . . . . . . . . 2 Fabricator Hacks 6 | . . . . . . . . . . . . . 1 . 2 . . . 2 . . . 1 . . . . . Network Status 2 | . . . . . . . . . . . . . 1 . . . . . . . . . 1 . . . . . Load Schematic 2 | . . . . . . . . . . . . . . . 1 . . . 1 . . . . . . . . . Build 2 | . . . . . . . . . . . . . . . 1 . . . 1 . . . . . . . . . Repair Station Hacks 6 | . . . . . . . 2 . . . . . . . . . . . . . . 2 1 . 1 . . . Scan Component 4 | . . . . . . . 1 . . . . . . . . . . . . . . 1 1 . 1 . . . Repair 2 | . . . . . . . 1 . . . . . . . . . . . . . . 1 . . . . . . Recycling Unit Hacks . | . . . . . . . . . . . . . . . . . . . . . . . . . . . . . Scanalyzer 4 | . . . 3 . . . . . . . . . . . . . . . . . . . . . 1 . . . Insert Component 2 | . . . 1 . . . . . . . . . . . . . . . . . . . . . 1 . . . Analyze 2 | . . . 2 . . . . . . . . . . . . . . . . . . . . . . . . . Garrison Access Hacks 16 | . . . . . . . 1 . 1 . . . 1 . 2 . 1 . 1 . 1 . 2 1 1 4 . . Unlock Access 6 | . . . . . . . 1 . 1 . . . 1 . 1 . 1 . 1 . . . . . . . . . Seal Access 9 | . . . . . . . . . . . . . . . 1 . . . . . 1 . 2 1 1 3 . . Coupler Status 1 | . . . . . . . . . . . . . . . . . . . . . . . . . . 1 . . Unauthorized Hacks 21 | . 1 . . . . . 1 . 1 . 4 . 3 . 2 . 1 . . . 1 4 1 . 2 . . . Terminals 11 | . 1 . . . . . 1 . . . . . 2 . . . . . . . 1 4 . . 2 . . . Assimilate 1 | . . . . . . . . . . . . . . . . . . . . . . 1 . . . . . . Botnet 7 | . 1 . . . . . . . . . . . 1 . . . . . . . 1 2 . . 2 . . . Disrupt 1 | . . . . . . . 1 . . . . . . . . . . . . . . . . . . . . . Operators 2 | . . . . . . . . . . . . . 1 . . . . . . . . 1 . . . . . . Fabricators 1 | . . . . . . . . . . . . . . . . . . . . . . . 1 . . . . . Haulers 1 | . . . . . . . . . . . . . . . . . . . . . . . 1 . . . . . Repair Stations 1 | . . . . . . . . . . . . . . . 1 . . . . . . . . . . . . . Mechanics 1 | . . . . . . . . . . . . . . . 1 . . . . . . . . . . . . . Recycling Units 4 | . . . . . . . . . . . 4 . . . . . . . . . . . . . . . . . Monitor 1 | . . . . . . . . . . . 1 . . . . . . . . . . . . . . . . . Reject 1 | . . . . . . . . . . . 1 . . . . . . . . . . . . . . . . . Recyclers 1 | . . . . . . . . . . . 1 . . . . . . . . . . . . . . . . . Mask 1 | . . . . . . . . . . . 1 . . . . . . . . . . . . . . . . . Scanalyzers . | . . . . . . . . . . . . . . . . . . . . . . . . . . . . . Garrison Access 4 | . . . . . . . . . 1 . . . 1 . 1 . 1 . . . . . . . . . . . Eject 4 | . . . . . . . . . 1 . . . 1 . 1 . 1 . . . . . . . . . . . Data Cores Recovered 3 | . . . 1 . . . 1 . . . . . . . . . . . . . . . . . 1 . . . Used 1 | . . . . . . . 1 . . . . . . . . . . . . . . . . . . . . . Hacking Detections 83 | . 4 . 4 . . . 4 3 1 2 3 . 2 3 4 1 . 3 6 2 2 7 3 5 14 8 2 . Full Trace Events 7 | . . . . . . . . 1 . 1 . . . 1 . . . . 2 . . . . . 1 1 . . Feedback Events 1 | . . . . . . . . . . . . . . . . . . . . . . . . . 1 . . . Corruption 1 | . . . . . . . . . . . . . . . . . . . . . . . . . 1 . . . Feedback Blocked . | . . . . . . . . . . . . . . . . . . . . . . . . . . . . . Robot Schematics Acquired 3 | . 1 . . . . . . . . . . . . . . . . . . . . . . . 2 . . . Robots Built 2 | . . . . . . . . . . . . . . . 1 . . . 1 . . . . . . . . . Authchips 2 | . . . . . . . . . . . . . . . 1 . . . 1 . . . . . . . . . Time 80 | . . . . . . . . . . . . . . . 40 . . . 40 . . . . . . . . . Total Robot Build Rating 2 | . . . . . . . . . . . . . . . 1 . . . 1 . . . . . . . . . Part Schematics Acquired 6 | . 1 . 1 . . . . . . . . . . . . . . . . . . . . . 4 . . . Parts Built . | . . . . . . . . . . . . . . . . . . . . . . . . . . . . . Authchips . | . . . . . . . . . . . . . . . . . . . . . . . . . . . . . Time . | . . . . . . . . . . . . . . . . . . . . . . . . . . . . . Total Part Build Rating . | . . . . . . . . . . . . . . . . . . . . . . . . . . . . . Parts Repaired 2 | . . . . . . . 1 . . . . . . . . . . . . . . 1 . . . . . . Time 54 | . . . . . . . 32 . . . . . . . . . . . . . . 22 . . . . . . Parts Recycled . | . . . . . . . . . . . . . . . . . . . . . . . . . . . . . Recycled Matter . | . . . . . . . . . . . . . . . . . . . . . . . . . . . . . Retrieved Matter . | . . . . . . . . . . . . . . . . . . . . . . . . . . . . . Retrieved Components . | . . . . . . . . . . . . . . . . . . . . . . . . . . . . . Parts Scanalyzed 1 | . . . 1 . . . . . . . . . . . . . . . . . . . . . . . . . Part Schematics Acquired 1 | . . . 1 . . . . . . . . . . . . . . . . . . . . . . . . . Parts Damaged . | . . . . . . . . . . . . . . . . . . . . . . . . . . . . . Bothacking | -11 -10 -10 -9 -9 -9 -8 -8 -8 -8 -8 -7 -7 -7 -7 -6 -6 -5 -5 -4 -4 -3 -3 -2 -2 -2 -1 -1 -1 ------------ Run | Scr Mat Min Mat Min Exi Min Mat Gar Mat Gar Fac Was Fac Gar Fac Gar Fac Gar Fac Gar Res Qua Res Tes Sec Acc Com Ac0 Used RIF Installer 9 | . . . . . . . . 2 . 2 . . . 1 . 1 . 1 . 2 . . . . . . . . Coupler Efficiency 2 | . . . . . . . . . . . . . . . . 1 . 1 . . . . . . . . . . Zone Cloak 2 | . . . . . . . . 1 . 1 . . . . . . . . . . . . . . . . . . Robot Detection 1 | . . . . . . . . . . . . . . 1 . . . . . . . . . . . . . . Watcher Feeds 1 | . . . . . . . . . . . . . . . . . . . . 1 . . . . . . . . Autoassimilate 2 | . . . . . . . . . . 1 . . . . . . . . . 1 . . . . . . . . Robots Hacked 145 | . . . . . . . . . . 2 3 6 . 2 1 . 4 14 32 14 8 3 19 9 13 3 12 . Non-combat 23 | . . . . . . . . . . . 3 . . . 1 . 1 . 6 . 1 . 2 2 7 . . . Combat 122 | . . . . . . . . . . 2 . 6 . 2 . . 3 14 26 14 7 3 17 7 6 3 12 . Autoassimilated 38 | . . . . . . . . . . . . . . 1 . . 1 . 4 7 4 3 6 3 1 1 7 . Robot Hacks Applied 134 | . . . . . . . . . . 2 3 7 . 1 3 . 4 18 32 9 11 . 17 8 12 2 5 . find_chute 2 | . . . . . . . . . . . 2 . . . . . . . . . . . . . . . . . drop_inventory 6 | . . . . . . . . . . . . . . . . . . . 2 . . . . . 4 . . . purge_threat 8 | . . . . . . . . . . . . . . . 3 . . . . . 4 . . . 1 . . . block_reporting 3 | . . . . . . . . . . . . . . . . . . . . . . . . 1 2 . . . map_route 1 | . . . . . . . . . . . . . . . . . . . . . . . 1 . . . . . disable_scanner 1 | . . . . . . . . . . . . . . . . . . . . . . . . 1 . . . . report_analyses 1 | . . . . . . . . . . . . . . . . . . . . . . . . 1 . . . . ignore_targets 7 | . . . . . . . . . . . . 7 . . . . . . . . . . . . . . . . emergency_deploy 1 | . . . . . . . . . . . . . . . . . . . 1 . . . . . . . . . find_garrison 1 | . . . . . . . . . . . . . . . . . 1 . . . . . . . . . . . reboot_propulsion 1 | . . . . . . . . . . . . . . . . . . 1 . . . . . . . . . . scatter_targeting 3 | . . . . . . . . . . . . . . . . . 1 . . . . . . 1 . . 1 . disrupt_area 2 | . . . . . . . . . . . . . . . . . . 1 . 1 . . . . . . . . spike_heat 4 | . . . . . . . . . . . . . . . . . . . 4 . . . . . . . . . overload_power 1 | . . . . . . . . . . . . . . . . . . 1 . . . . . . . . . . amplify_resonance 23 | . . . . . . . . . . . . . . . . . . 2 7 5 1 . 6 1 1 . . . wipe_record 5 | . . . . . . . . . . . . . . . . . . 2 . . . . 2 . . 1 . . disable_weapons 3 | . . . . . . . . . . . . . . 1 . . . 1 1 . . . . . . . . . reboot_system 20 | . . . . . . . . . . 1 . . . . . . . 7 3 3 3 . 1 1 1 . . . go_dormant 3 | . . . . . . . . . . . . . . . . . . . . . 1 . 1 1 . . . . overwrite_iff 16 | . . . . . . . . . . . . . . . . . . 3 8 . 1 . 4 . . . . . streamctrl_high 1 | . . . . . . . . . . . . . . . . . . . . . . . . . 1 . . . formatsys_low 8 | . . . . . . . . . . . 1 . . . . . 1 . 2 . 1 . . 1 2 . . . formatsys_high 12 | . . . . . . . . . . 1 . . . . . . 1 . 3 . . . 2 . . 1 4 . formatsys_deep 1 | . . . . . . . . . . . . . . . . . . . 1 . . . . . . . . . Relay Couplers Released 72 | . . . . . . . . 4 3 12 . . 3 9 4 9 3 12 . 9 . . 3 . . 1 . . Ejected 13 | . . . . . . . . . 3 . . . 3 . 4 . 3 . . . . . . . . . . . Machine Destruction 56 | . . . . . . . . 4 . 12 . . . 9 . 9 . 12 . 9 . . . . . 1 . . Programmers 3 | . . . . . . . . . . . . . . . . . . . . . . . 3 . . . . . Attached 34 | . . . . . . . . . . 1 1 1 . 3 . . 2 8 2 7 2 . 1 2 1 1 2 . Fabnet Peak Effective % . | . . . . . . . . . . . . . . . . . . . . . . . . . . . . . Robots Rewired 10 | . . . . . . . . 6 . . . . . . . 2 . 2 . . . . . . . . . . Allies Hacked 5 | . . . . . . . . . . . . . . . . . . . . . 2 1 . . 2 . . . Hacks Repelled . | . . . . . . . . . . . . . . . . . . . . . . . . . . . . . Allies | -11 -10 -10 -9 -9 -9 -8 -8 -8 -8 -8 -7 -7 -7 -7 -6 -6 -5 -5 -4 -4 -3 -3 -2 -2 -2 -1 -1 -1 -------- Run | Scr Mat Min Mat Min Exi Min Mat Gar Mat Gar Fac Was Fac Gar Fac Gar Fac Gar Fac Gar Res Qua Res Tes Sec Acc Com Ac0 Total Allies 93 | . . . . 3 . . . 6 . 2 1 . . 1 1 2 3 5 20 7 6 4 11 4 4 2 11 . Largest Group 7 | . . . . 3 3 3 . 5 5 3 1 1 1 1 1 2 3 4 3 3 5 3 3 1 1 1 7 2 Highest-Rated Group 962 | . . . . 40 40 40 . 129 129 80 23 23 23 32 14 201 101 296 232 154 287 117 238 343 343 219 962 364 Highest-Rated Ally 343 | . . . . 16 16 16 . 31 31 31 23 23 23 32 14 116 49 148 148 116 64 64 119 343 343 219 212 212 Total Orders 53 | . . . . . . . . 2 . 1 1 2 1 . 1 6 1 5 4 2 . 4 1 1 3 2 16 . STAY 24 | . . . . . . . . 1 . 1 . 1 . . . 2 . 1 . 1 . 3 . . 3 2 9 . ROAM 6 | . . . . . . . . . . . . . . . . 2 . 1 1 . . 1 1 . . . . . FOLLOW 12 | . . . . . . . . 1 . . . . . . . 1 . 2 . 1 . . . . . . 7 . AID 11 | . . . . . . . . . . . 1 1 1 . 1 1 1 1 3 . . . . 1 . . . . Ally Attacks 510 | . . . . . . 13 . 13 23 39 . . . 7 . 15 6 70 43 15 21 14 51 . 12 2 132 34 Total Damage 20014 | . . . . . . 138 . 397 376 665 . . . 266 . 990 95 1725 1557 677 985 272 1914 . 567 52 8119 1219 Kills 86 | . . . . . . 1 . 6 6 8 . . . 1 . 2 . 16 8 6 4 . 14 . 2 . 12 . Allies Corrupted 6 | . . . . . . . . . . . . . . . . . . 1 1 . 1 . . . 1 . 2 . Allies Melted 2 | . . . . . . . . 1 . . . . . . . . . . . 1 . . . . . . . . Intel | -11 -10 -10 -9 -9 -9 -8 -8 -8 -8 -8 -7 -7 -7 -7 -6 -6 -5 -5 -4 -4 -3 -3 -2 -2 -2 -1 -1 -1 ------- Run | Scr Mat Min Mat Min Exi Min Mat Gar Mat Gar Fac Was Fac Gar Fac Gar Fac Gar Fac Gar Res Qua Res Tes Sec Acc Com Ac0 Robot Analysis Total . | . . . . . . . . . . . . . . . . . . . . . . . . . . . . . Derelict Logs Recovered 1 | . . 1 . . . . . . . . . . . . . . . . . . . . . . . . . . Drone Launches . | . . . . . . . . . . . . . . . . . . . . . . . . . . . . . Drone Recoveries . | . . . . . . . . . . . . . . . . . . . . . . . . . . . . . Exploration | -11 -10 -10 -9 -9 -9 -8 -8 -8 -8 -8 -7 -7 -7 -7 -6 -6 -5 -5 -4 -4 -3 -3 -2 -2 -2 -1 -1 -1 ------------- Run | Scr Mat Min Mat Min Exi Min Mat Gar Mat Gar Fac Was Fac Gar Fac Gar Fac Gar Fac Gar Res Qua Res Tes Sec Acc Com Ac0 Turns Passed 46754 | 4 1816 1218 2025 718 637 752 1311 1893 362 1271 2148 839 527 1572 1166 1996 238 1871 1861 1369 786 1425 1703 1335 3437 1778 10080 616 Spaces Moved 21042 | 1 793 529 759 330 305 297 467 692 151 492 781 311 282 720 533 941 92 710 713 707 404 733 747 692 1654 912 5057 237 Core . | . . . . . . . . . . . . . . . . . . . . . . . . . . . . . Treads 14843 | 1 710 . 1 . . . . 3 . 3 727 311 282 720 250 . . 299 439 707 404 733 747 692 1646 906 5057 205 Legs . | . . . . . . . . . . . . . . . . . . . . . . . . . . . . . Wheels 6153 | . 83 529 758 330 305 297 467 689 151 489 54 . . . 283 941 92 411 274 . . . . . . . . . Hover . | . . . . . . . . . . . . . . . . . . . . . . . . . . . . . Flight . | . . . . . . . . . . . . . . . . . . . . . . . . . . . . . Fastest Speed 116 | 160 160 215 175 210 195 210 210 195 210 210 210 160 160 160 160 160 160 160 116 158 155 155 155 155 151 151 151 160 Average Speed 176 | 160 197 215 207 210 204 210 218 207 210 210 239 178 160 160 185 172 174 202 184 160 155 157 156 155 158 151 158 160 Slowest Speed 330 | 160 320 215 240 210 210 210 225 320 210 325 242 242 160 160 240 175 175 250 330 240 155 161 161 155 160 151 160 160 Overloaded Moves . | . . . . . . . . . . . . . . . . . . . . . . . . . . . . . Propulsion Burnouts . | . . . . . . . . . . . . . . . . . . . . . . . . . . . . . Robots Hopped . | . . . . . . . . . . . . . . . . . . . . . . . . . . . . . Cave-ins Triggered . | . . . . . . . . . . . . . . . . . . . . . . . . . . . . . Teleports 2 | . . . . . . . . . . . . . . . . . . . . . . . . . . 1 1 . Spacefolds 5 | . . . . . . . . . . . . . . . . . . . . . . . . . 3 2 . . Microwarps 5 | . . . . . . . . . . . . . . . . . . . . . . . . . . . . 5 Exploration Rate (%) 55 | 2 81 99 78 64 57 70 39 73 15 74 20 81 12 69 15 89 4 83 27 80 23 92 43 75 83 46 89 23 Regions Visited 28 Branch Regions 9 Pre-discovered Areas 1 | . . 1 . . . . . . . . . . . . . . . . . . . . . . . . . . Known Exits Taken 8 | . . . . . . . 1 . 1 . . . 1 . 1 . 1 . 1 . . 1 1 . . . . . Unknown Exits Taken 12 | 1 1 1 1 1 1 1 . . . . . . . . . . . . . . 1 . . 1 1 1 1 . Scrap Searched 3 | . . 1 . 1 . 1 . . . . . . . . . . . . . . . . . . . . . . Spaces Dug 626 | . 8 40 57 18 . . . 7 . 20 21 . 1 4 14 97 . 30 13 63 4 18 31 33 18 23 93 13 Terrain Destroyed 1240 | . 28 40 80 18 . 17 59 10 3 29 25 . 10 83 41 106 1 32 75 63 7 21 36 35 25 29 336 31 Melee 109 | . . . . . . . . . . 3 9 . 1 . 1 . . . 12 1 . 6 16 15 13 21 11 . Projectile 385 | . . . . . . . . 2 3 2 2 . . . 4 10 1 2 10 . 7 15 20 6 5 2 265 29 AOE 720 | . 28 40 80 18 . 17 59 7 . 24 14 . 9 83 36 96 . 30 53 62 . . . 12 . . 52 . Terrain Rammed . | . . . . . . . . . . . . . . . . . . . . . . . . . . . . . Walls Destroyed . | . . . . . . . . . . . . . . . . . . . . . . . . . . . . . Machines Disabled . | . . . . . . . . . . . . . . . . . . . . . . . . . . . . . Actions | -11 -10 -10 -9 -9 -9 -8 -8 -8 -8 -8 -7 -7 -7 -7 -6 -6 -5 -5 -4 -4 -3 -3 -2 -2 -2 -1 -1 -1 --------- Run | Scr Mat Min Mat Min Exi Min Mat Gar Mat Gar Fac Was Fac Gar Fac Gar Fac Gar Fac Gar Res Qua Res Tes Sec Acc Com Ac0 Total 28084 | 6 939 598 1061 349 323 374 674 1017 192 634 978 502 327 986 658 1226 150 1033 1116 873 530 949 1181 855 2209 1166 6754 424 Wait 3300 | . 49 48 106 14 . 29 123 97 31 38 100 87 11 132 62 100 29 115 199 34 60 140 229 42 241 93 1054 37 Move 20982 | . 792 528 758 329 304 296 467 691 151 491 781 310 281 719 532 940 91 709 713 706 403 732 746 691 1648 907 5056 210 Hop . | . . . . . . . . . . . . . . . . . . . . . . . . . . . . . Pick Up 295 | . 18 4 25 . 6 3 9 11 3 4 7 25 7 10 9 24 3 14 8 20 6 4 8 8 19 10 29 1 Fast Attach 126 | . 2 . 3 . . 1 3 9 1 1 2 3 1 3 1 4 . 7 11 7 2 6 8 9 18 10 11 3 Attach 141 | 2 . . 7 . 3 1 2 9 . 2 6 4 . 7 8 8 4 5 8 9 6 2 5 5 5 8 21 4 Detach 37 | . . . 1 . 2 . . 4 . . 2 . . . . 1 1 1 1 1 3 . 2 2 1 2 9 4 Swap 449 | . 10 6 30 2 . 7 7 19 1 22 25 9 3 18 9 19 3 20 9 14 1 11 30 12 64 24 29 45 Drop 314 | 4 5 3 35 . 8 5 9 19 3 5 5 8 6 10 4 21 2 17 6 19 4 10 8 16 28 14 39 1 Fire 1839 | . 57 9 93 4 . 32 54 70 2 30 32 46 12 85 26 68 16 89 130 45 45 35 101 28 137 61 413 119 Melee 383 | . . . . . . . . 5 . 20 18 10 6 2 7 . . 12 20 18 . 9 41 41 45 37 92 . Ram 1 | . 1 . . . . . . . . . . . . . . . . . . . . . . . . . . . Kick . | . . . . . . . . . . . . . . . . . . . . . . . . . . . . . Crush 17 | . 5 . 3 . . . . . . . . . . . . . . . 2 . . . 3 1 3 . . . Escape Stasis 134 | . . . . . . . . 38 . 20 . . . . . 24 . 44 8 . . . . . . . . . Rewire 65 | . . . . . . . . 45 . . . . . . . 17 1 . 1 . . . . . . . 1 . Trap 1 | . . . . . . . . . . 1 . . . . . . . . . . . . . . . . . . Miscellaneous . | . . . . . . . . . . . . . . . . . . . . . . . . . . . . . Route ------- -11/Scrapyard -10/Materials (discovered 4 exits: *Mat x3 / [*Min]) -10/Mines (discovered 2 exits: *Mat x2) -9/Materials (discovered 2 exits: *Mat / [*Min]) -9/Mines (discovered 3 exits: *Mat x2 / *Exi) -9/Exiles -8/Mines (discovered 2 exits: *Mat x2) -8/Materials (discovered 2 exits: [*Sto] / Gar) -8/Garrison (discovered 3 exits: *Mat x3) -8/Materials -8/Garrison (discovered 3 exits: *Fac x3) -7/Factory -7/Waste -7/Factory -7/Garrison (discovered 3 exits: *Fac x3) -6/Factory (discovered 2 exits: [*Low] / Gar) -6/Garrison (discovered 3 exits: *Fac x3) -5/Factory -5/Garrison (discovered 3 exits: *Fac x3) -4/Factory (discovered 3 exits: *Upp x2 / Gar) -4/Garrison (discovered 3 exits: *Res x3) -3/Research (discovered 2 exits: *Res / *Qua) -3/Quarantine -2/Research (discovered 3 exits: *Acc / *Tes x2) -2/Testing (discovered 2 exits: *Acc / *Sec) -2/Section 7 -1/Access -1/Command (discovered 3 exits: [*Sur x2] / *Ac0) -1/Access_0 Subspace History --------- Turn | Location | Event 5 | -11/Scrapyard | Discovered new exit (range 0) 5 | -11/Scrapyard | Entered Materials 234 | -10/Materials | Destroyed 7 combat bots 315 | -10/Materials | Build established: Mutant 349 | -10/Materials | Discovered new exit (range 13) 530 | -10/Materials | Discovered new exit (range 13) 530 | -10/Materials | Discovered new exit (range 7) 927 | -10/Materials | Discovered new exit (range 16) 1821 | -10/Materials | Entered Mines 1828 | -10/Mines | Received a Rocket Launcher from a helpful Derelict 1968 | -10/Mines | Assembled infested the area 1973 | -10/Mines | Assisted by a Guerilla fighting off Assembled 2166 | -10/Mines | Discovered new exit (range 5) 2366 | -10/Mines | Learned location of Storage (-8) 2552 | -10/Mines | Learned Materials garrison access intel 2595 | -10/Mines | Discovered new exit (range 12) 3039 | -10/Mines | Entered Materials 3039 | -9/Materials | Evolved 2 slots: Propulsion x1, Utility x1 3109 | -9/Materials | Build established: Scavenger-Mutant 3323 | -9/Materials | Discovered new exit (range 16) 3928 | -9/Materials | Discovered new exit (range 14) 4791 | -9/Materials | Build established: Mutant 5039 | -9/Materials | First assault squad dispatched 5064 | -9/Materials | Entered Mines 5177 | -9/Mines | Found a hidden stash of uninstalled traps 5545 | -9/Mines | Discovered new exit (range 6) 5679 | -9/Mines | Assisted by bots powering up and referring to "LRC-V3" 5706 | -9/Mines | Discovered new exit (range 5) 5773 | -9/Mines | Deemed a non-threat by the Exiles lab entrance 5773 | -9/Mines | Discovered new exit (range 5) 5782 | -9/Mines | Entered Exiles 5782 | -9/Exiles | Found Exiles lab abandoned 5782 | -9/Exiles | Accompanied by 3 allies 6392 | -9/Exiles | Discovered new exit (range 14) 6419 | -9/Exiles | Entered Mines 6419 | -8/Mines | Accompanied by 3 allies 6591 | -8/Mines | Core integrity fell below 50% 6656 | -8/Mines | Discovered new exit (range 11) 6958 | -8/Mines | Discovered new exit (range 15) 7171 | -8/Mines | Entered Materials 7171 | -8/Materials | Evolved 2 slots: Utility x2 7172 | -8/Materials | Loaded intel: 1 garrison access location 7968 | -8/Materials | Discovered new exit (range 9) 8295 | -8/Materials | Repaired Med. Armor Plating 8384 | -8/Materials | Garrison activated, responded to threat 8482 | -8/Materials | Identified exit to Garrison 8482 | -8/Materials | Entered Garrison 8518 | -8/Garrison | Triggered checkpoint 8723 | -8/Garrison | Triggered checkpoint 8830 | -8/Garrison | Lost 5 parts (2p1n1u1w) 8986 | -8/Garrison | Triggered checkpoint 9062 | -8/Garrison | Discovered new exit (range 18) 9062 | -8/Garrison | Discovered new exit (range 58) 9062 | -8/Garrison | Discovered new exit (range 75) 9084 | -8/Garrison | Build established: Scavenger-Mutant 9115 | -8/Garrison | Installed Relay Interface Framework 9364 | -8/Garrison | Expanded RIF knowledge: Zone Cloak 9475 | -8/Garrison | Triggered checkpoint 9612 | -8/Garrison | Triggered checkpoint 9653 | -8/Garrison | Garrison Relay disabled 9988 | -8/Garrison | Triggered checkpoint 10375 | -8/Garrison | Entered Materials 10375 | -8/Materials | Accompanied by 5 allies 10708 | -8/Materials | Identified exit to Garrison 10737 | -8/Materials | Entered Garrison 10737 | -8/Garrison | Accompanied by 3 allies 10738 | -8/Garrison | Triggered checkpoint 10792 | -8/Garrison | Triggered checkpoint 10821 | -8/Garrison | Garrison Relay disabled 10983 | -8/Garrison | Triggered checkpoint 11018 | -8/Garrison | Triggered checkpoint 11102 | -8/Garrison | Triggered checkpoint 11134 | -8/Garrison | Build established: Bothacker-Mutant 11197 | -8/Garrison | Discovered new exit (range 59) 11197 | -8/Garrison | Discovered new exit (range 62) 11197 | -8/Garrison | Discovered new exit (range 32) 11248 | -8/Garrison | Triggered checkpoint 11276 | -8/Garrison | Triggered checkpoint 11472 | -8/Garrison | Expanded RIF knowledge: Zone Cloak 11720 | -8/Garrison | Expanded RIF knowledge: Autoassimilate 11766 | -8/Garrison | Garrison Relay disabled 11859 | -8/Garrison | Rescued a captive Derelict 12008 | -8/Garrison | Entered Factory 12008 | -7/Factory | Evolved 2 slots: Propulsion x1, Utility x1 14156 | -7/Factory | Sucked down chute 14156 | -7/Factory | Entered Waste 14170 | -7/Waste | 1 allies followed down the chute 14239 | -7/Waste | Spotted C-40 Crusher 14304 | -7/Waste | Destroyed C-40 Crusher 14378 | -7/Waste | Spotted C-40 Crusher 14394 | -7/Waste | Crushed by Compactor (1 part destroyed, 2 dropped) 14411 | -7/Waste | Spotted C-40 Crusher 14437 | -7/Waste | Spotted C-40 Crusher 14493 | -7/Waste | Spotted C-40 Crusher 14587 | -7/Waste | Spotted C-40 Crusher 14692 | -7/Waste | Destroyed C-40 Crusher 14797 | -7/Waste | Destroyed C-40 Crusher 14912 | -7/Waste | Build established: Scavenger-Mutant 14975 | -7/Waste | Discovered new exit (range 11) 14995 | -7/Waste | Entered Factory 14995 | -7/Factory | Accompanied by 1 ally 15503 | -7/Factory | Identified exit to Garrison 15522 | -7/Factory | Entered Garrison 15522 | -7/Garrison | Accompanied by 1 ally 15628 | -7/Garrison | Triggered checkpoint 15659 | -7/Garrison | Garrison Relay disabled 15701 | -7/Garrison | Expanded RIF knowledge: Robot Detection 15787 | -7/Garrison | Build established: Bothacker-Mutant 15839 | -7/Garrison | Triggered checkpoint 16006 | -7/Garrison | Destroyed 8 combat bots 16041 | -7/Garrison | Triggered checkpoint 16074 | -7/Garrison | Triggered checkpoint 16202 | -7/Garrison | Triggered checkpoint 16233 | -7/Garrison | Garrison Relay disabled 16340 | -7/Garrison | Learned Factory security intel 16359 | -7/Garrison | Discovered new exit (range 12) 16507 | -7/Garrison | Discovered new exit (range 14) 16533 | -7/Garrison | Build established: Botlord-Mutant 16672 | -7/Garrison | Triggered checkpoint 16746 | -7/Garrison | Triggered checkpoint 16850 | -7/Garrison | Build established: Bothacker-Mutant 16864 | -7/Garrison | Triggered checkpoint 16874 | -7/Garrison | Discovered new exit (range 65) 16874 | -7/Garrison | Discovered new exit (range 30) 16874 | -7/Garrison | Discovered new exit (range 41) 17094 | -7/Garrison | Entered Factory 17094 | -6/Factory | Evolved 2 slots: Power x1, Utility x1 17112 | -6/Factory | Spotted B-75 Beast 17444 | -6/Factory | First assault squad dispatched 17667 | -6/Factory | Discovered new exit (range 10) 18012 | -6/Factory | Fabricated M-13 Machinist? 18248 | -6/Factory | Identified exit to Garrison 18260 | -6/Factory | Entered Garrison 18260 | -6/Garrison | Accompanied by 1 ally 18386 | -6/Garrison | Triggered checkpoint 18559 | -6/Garrison | Destroyed 8 combat bots 18582 | -6/Garrison | Build established: Botlord-Mutant 18757 | -6/Garrison | Discovered new exit (range 13) 18760 | -6/Garrison | Triggered checkpoint 18786 | -6/Garrison | Rewired B-75 Beast 18787 | -6/Garrison | Spotted B-75 Beast 18874 | -6/Garrison | Triggered checkpoint 19127 | -6/Garrison | Rewired B-86 Titan 19174 | -6/Garrison | Allies destroyed B-75 Beast 19282 | -6/Garrison | Garrison Relay disabled 19533 | -6/Garrison | Discovered new exit (range 11) 19536 | -6/Garrison | Triggered checkpoint 19603 | -6/Garrison | System corruption reached 10% 19636 | -6/Garrison | Lost 3 parts (1p1n1w) 19790 | -6/Garrison | Spotted Striker 19964 | -6/Garrison | Found Relay Coupler [Proto] 19967 | -6/Garrison | Found Relay Coupler [Proto] 19971 | -6/Garrison | Found Relay Coupler [Proto] 19974 | -6/Garrison | Found Relay Coupler [Proto] 20112 | -6/Garrison | Triggered checkpoint 20216 | -6/Garrison | Expanded RIF knowledge: Coupler Efficiency 20241 | -6/Garrison | Discovered new exit (range 10) 20256 | -6/Garrison | Entered Factory 20256 | -5/Factory | Evolved 2 slots: Utility x2 20492 | -5/Factory | Identified exit to Garrison 20494 | -5/Factory | Entered Garrison 20494 | -5/Garrison | Accompanied by 3 allies 20592 | -5/Garrison | Garrison Relay disabled 20704 | -5/Garrison | Triggered checkpoint 20712 | -5/Garrison | Spotted B-75 Beast 20722 | -5/Garrison | Triggered checkpoint 20724 | -5/Garrison | Triggered checkpoint 20851 | -5/Garrison | Learned Factory security intel 20960 | -5/Garrison | Discovered new exit (range 12) 21018 | -5/Garrison | Triggered checkpoint 21121 | -5/Garrison | Garrison Relay disabled 21371 | -5/Garrison | Discovered new exit (range 8) 21420 | -5/Garrison | Rewired B-90 Cyclops 21426 | -5/Garrison | Rewired B-90 Cyclops 21499 | -5/Garrison | Destroyed Cyclops 6a 21556 | -5/Garrison | Found Quantum Capacitor 21678 | -5/Garrison | Triggered checkpoint 21728 | -5/Garrison | Triggered checkpoint 21937 | -5/Garrison | Discovered new exit (range 12) 21964 | -5/Garrison | Expanded RIF knowledge: Coupler Efficiency 22012 | -5/Garrison | Triggered checkpoint 22120 | -5/Garrison | Garrison Relay disabled 22365 | -5/Garrison | Entered Factory 22365 | -4/Factory | Accompanied by 1 ally 22365 | -4/Factory | Evolved 2 slots: Propulsion x1, Utility x1 22686 | -4/Factory | Spotted B-86 Titan 22691 | -4/Factory | Assimilated Titan 7a with formatsys_high 22865 | -4/Factory | First assault squad dispatched 23043 | -4/Factory | Lost 3 parts (1p1u1w) 23130 | -4/Factory | Identified exit to Upper Caves 23308 | -4/Factory | Lost 3 parts (1n1u1w) 23585 | -4/Factory | Fabricated M-13 Machinist (x1) 23632 | -4/Factory | P-70 Sage assimilated allied Machinist 7b 24007 | -4/Factory | Spotted B-86 Titan 24132 | -4/Factory | Assimilated ARC 7a with formatsys_deep 24209 | -4/Factory | Cargo convoy interrupted 24211 | -4/Factory | Garrison activated, responded to threat 24211 | -4/Factory | Spotted Executioner 24226 | -4/Factory | Identified exit to Garrison 24226 | -4/Factory | Entered Garrison 24285 | -4/Garrison | Spotted B-86 Titan 24286 | -4/Garrison | Autoassimilated Titan 7b with RIF 24291 | -4/Garrison | Triggered checkpoint 24352 | -4/Garrison | Expanded RIF knowledge: Autoassimilate 24555 | -4/Garrison | Lost 3 parts (2n1w) 24566 | -4/Garrison | Triggered checkpoint 24568 | -4/Garrison | Destroyed 7 combat bots 24628 | -4/Garrison | Triggered checkpoint 24730 | -4/Garrison | Discovered new exit (range 12) 24804 | -4/Garrison | Triggered checkpoint 24841 | -4/Garrison | Expanded RIF knowledge: Watcher Feeds 25036 | -4/Garrison | Discovered new exit (range 10) 25098 | -4/Garrison | Triggered checkpoint 25134 | -4/Garrison | Discovered new exit (range 91) 25134 | -4/Garrison | Discovered new exit (range 74) 25134 | -4/Garrison | Discovered new exit (range 13) 25148 | -4/Garrison | Garrison Relay disabled 25302 | -4/Garrison | Spotted B-86 Titan 25463 | -4/Garrison | Spotted B-90 Cyclops 25479 | -4/Garrison | Spotted B-86 Titan 25520 | -4/Garrison | Garrison Relay disabled 25562 | -4/Garrison | Triggered checkpoint 25595 | -4/Garrison | Entered Research 25595 | -3/Research | Accompanied by 1 ally 25595 | -3/Research | Evolved 2 slots: Propulsion x1, Utility x1 25706 | -3/Research | Discovered new exit (range 11) 25749 | -3/Research | Identified exit to Research 25906 | -3/Research | Found Prototype Device 25996 | -3/Research | Found Unknown Launcher 25996 | -3/Research | Identified Gamma Bomb Array 26368 | -3/Research | Discovered new exit (range 8) 26381 | -3/Research | Entered Quarantine 26381 | -3/Quarantine | Accompanied by 1 ally 26523 | -3/Quarantine | Cryocooling Duct disabled 26538 | -3/Quarantine | Ambient heat levels rising (+20) 26538 | -3/Quarantine | Non-combat units ordered to evacuate 26663 | -3/Quarantine | Repaired Hrd. Heavy Armor Plating 26711 | -3/Quarantine | Found Alien Artifact 26927 | -3/Quarantine | Found Alien Slashing Weapon 27010 | -3/Quarantine | Identified Exp. Thermal Defense Suite 27013 | -3/Quarantine | Found Alien Artifact 27265 | -3/Quarantine | System corruption reached 10% 27431 | -3/Quarantine | Found Enh. Force Lance 27543 | -3/Quarantine | Discovered exit to Research (range 16) 27806 | -3/Quarantine | Entered Research 27806 | -2/Research | Evolved 2 slots: Utility x1, Weapon x1 27876 | -2/Research | Identified Sigix Broadsword 28070 | -2/Research | Found Quantum Capacitor 28329 | -2/Research | System corruption reached 10% 28599 | -2/Research | Identified exit to Testing 29026 | -2/Research | Garrison activated, responded to threat 29044 | -2/Research | Cargo convoy interrupted 29046 | -2/Research | Identified Phase Armor 29187 | -2/Research | Spotted Executioner 29187 | -2/Research | Spotted Executioner 29189 | -2/Research | Spotted Executioner 29189 | -2/Research | Assimilated Executioner with formatsys_high 29339 | -2/Research | Spotted Executioner 29340 | -2/Research | Autoassimilated Executioner with RIF 29344 | -2/Research | Allies destroyed Executioner 29496 | -2/Research | Discovered new exit (range 16) 29509 | -2/Research | Entered Testing 29593 | -2/Testing | Found Prototype Device 29593 | -2/Testing | Identified Exp. Hardlight Generator 29688 | -2/Testing | Found Prototype Device 29688 | -2/Testing | Identified AEGIS Remote Shield 29743 | -2/Testing | Discovered new exit (range 3) 29784 | -2/Testing | Found Prototype Ballistic Gun 29785 | -2/Testing | Identified Hyp. Multirail 30117 | -2/Testing | Found Prototype Ballistic Cannon 30119 | -2/Testing | Identified Perforator 30282 | -2/Testing | Spotted PY-QMCLWSLBHT 30383 | -2/Testing | Destroyed PY-QMCLWSLBHT 30461 | -2/Testing | Found Prototype Device 30467 | -2/Testing | Found Prototype Device 30722 | -2/Testing | Spotted Fortress 30723 | -2/Testing | Autoassimilated Fortress with RIF 30827 | -2/Testing | Discovered new exit (range 6) 30844 | -2/Testing | Entered Section 7 30844 | -2/Section 7 | Accompanied by 1 ally 30984 | -2/Section 7 | Destroyed Fortress 30999 | -2/Section 7 | Found Prototype Reactor 30999 | -2/Section 7 | Identified Vortex Chain Reactor 31015 | -2/Section 7 | Found Prototype Protection 31015 | -2/Section 7 | Identified Centrium Heavy Armor Plating 31024 | -2/Section 7 | Found Prototype Device 31024 | -2/Section 7 | Identified Exp. Force Field 31028 | -2/Section 7 | Found Prototype Device 31028 | -2/Section 7 | Identified Thermal Barrier 31036 | -2/Section 7 | Found Prototype Device 31036 | -2/Section 7 | Identified Exp. EM Disruption Field 31098 | -2/Section 7 | Found Alien Artifact 31287 | -2/Section 7 | Identified Adv. Kinecellerator 31287 | -2/Section 7 | Identified Exp. ECM Suite 31287 | -2/Section 7 | Identified Core Reset Matrix 31287 | -2/Section 7 | Identified Subatomic Replicator 31799 | -2/Section 7 | Spotted Executioner 31810 | -2/Section 7 | Spotted Executioner 31835 | -2/Section 7 | Destroyed Executioner 31835 | -2/Section 7 | Destroyed Executioner 31849 | -2/Section 7 | Found Prototype Processor 31849 | -2/Section 7 | Identified Exp. Core Analyzer 31854 | -2/Section 7 | Found Exp. Core Analyzer 31858 | -2/Section 7 | Found Prototype Processor 31872 | -2/Section 7 | Found Alien Artifact 31875 | -2/Section 7 | Found Alien Artifact 32010 | -2/Section 7 | Spotted B-99 Colossus 32111 | -2/Section 7 | Found Alien Artifact 32111 | -2/Section 7 | Identified LRC Energy Well 32111 | -2/Section 7 | Installed LRC Energy Well, increased energy storage capacity (+250) 32115 | -2/Section 7 | Found Alien Artifact 32115 | -2/Section 7 | Identified LRC Armor 32115 | -2/Section 7 | Installed LRC Armor, increased core integrity (+250) 32506 | -2/Section 7 | Found Alien Artifact 32756 | -2/Section 7 | Identified Integrated Reactor 32789 | -2/Section 7 | Installed Integrated Reactor, increased core energy generation (+10) 32793 | -2/Section 7 | Identified Exp. Targeting Computer 32795 | -2/Section 7 | Found Alien Artifact 32935 | -2/Section 7 | Found Alien Artifact 33012 | -2/Section 7 | Found Alien Artifact 33677 | -2/Section 7 | Spotted S7 Guard 33691 | -2/Section 7 | Found Alien Artifact 33703 | -2/Section 7 | System corruption reached 30% 33721 | -2/Section 7 | Hijacked S7 Guard control node with streamctrl_high 33794 | -2/Section 7 | Destroyed S7 Guard 33801 | -2/Section 7 | Found Prototype Protection 33801 | -2/Section 7 | Identified Hvy. Regenerative Plating 33840 | -2/Section 7 | Discovered new exit (range 15) 34043 | -2/Section 7 | Identified Transdimensional Reconstructor (x2) 34043 | -2/Section 7 | Identified Integrated Dissipator 34043 | -2/Section 7 | Identified Core Physics Calibrator 34043 | -2/Section 7 | Identified Spacefold Activator 34043 | -2/Section 7 | Identified Microwarp Drive 34045 | -2/Section 7 | Installed Integrated Dissipator, increased core heat dissipation (+20) 34281 | -2/Section 7 | Entered Access 34281 | -1/Access | Evolved 2 slots: Power x2 34924 | -1/Access | Spotted B-99 Colossus 34932 | -1/Access | Assimilated Colossus 10a with formatsys_high 35028 | -1/Access | Destroyed Colossus 10a 35033 | -1/Access | Found Prototype Ballistic Gun 35047 | -1/Access | Found Prototype Ballistic Gun 35047 | -1/Access | Identified Multirail (x2) 35479 | -1/Access | Spotted B-99 Colossus 35481 | -1/Access | Spotted B-99 Colossus 35489 | -1/Access | Warped through subspace 35579 | -1/Access | Destroyed 9 combat bots 35951 | -1/Access | Discovered new exit (range 21) 36059 | -1/Access | Entered Command 36930 | -1/Command | Spotted M Guard 36930 | -1/Command | Spotted M Guard 36931 | -1/Command | Autoassimilated M Guard with RIF 36931 | -1/Command | Spotted Combat Programmer 36932 | -1/Command | Spotted Combat Programmer 36933 | -1/Command | Autoassimilated Combat Programmer with RIF 36963 | -1/Command | Destroyed Combat Programmer 36966 | -1/Command | Assimilated M Guard with formatsys_high 37357 | -1/Command | Spotted Alpha 7 37357 | -1/Command | Spotted Alpha 7 37357 | -1/Command | Spotted Striker 37357 | -1/Command | Spotted Striker 37357 | -1/Command | Spotted Executioner 37357 | -1/Command | Spotted Executioner 37357 | -1/Command | Spotted Executioner 37357 | -1/Command | Spotted Executioner 37358 | -1/Command | Autoassimilated Executioner with RIF 37358 | -1/Command | Autoassimilated Executioner with RIF 37358 | -1/Command | Autoassimilated Striker with RIF 37358 | -1/Command | Autoassimilated Alpha 7 with RIF 37361 | -1/Command | Assimilated Alpha 7 with formatsys_high 37363 | -1/Command | Spotted B-99 Colossus 37363 | -1/Command | Assimilated Executioner with formatsys_high 37365 | -1/Command | Spotted B-99 Colossus 37367 | -1/Command | Assimilated Striker with formatsys_high 37373 | -1/Command | Allies destroyed B-99 Colossus 37374 | -1/Command | Allies destroyed Executioner 37379 | -1/Command | Allies destroyed B-99 Colossus 37388 | -1/Command | Discovered new exit (range 8) 37393 | -1/Command | Found Multirail 37423 | -1/Command | Found Adv. Kinecellerator 37427 | -1/Command | Found Exp. Core Analyzer 37434 | -1/Command | Found Multirail 37654 | -1/Command | Met MAIN.C 37683 | -1/Command | Allies destroyed MAIN.C Shell 37683 | -1/Command | 0b10 Conduit disabled 37683 | -1/Command | MAIN.C activated Command garrisons 37708 | -1/Command | Destroyed MAIN.C 37731 | -1/Command | Found Prototype Reactor 37731 | -1/Command | Identified Singularity Reactor 37754 | -1/Command | Discovered new exit (range 31) 37754 | -1/Command | Discovered new exit (range 98) 37754 | -1/Command | Extracted map data and part IDs from MAIN.C's data core 37770 | -1/Command | Spotted B-99 Colossus 37783 | -1/Command | Allies destroyed B-99 Colossus 37791 | -1/Command | Spotted B-99 Colossus 37804 | -1/Command | Allies destroyed B-99 Colossus 38199 | -1/Command | Build established: Scavenger-Mutant 38342 | -1/Command | Found Exp. System Purifier 38374 | -1/Command | Found Null Cannon 38380 | -1/Command | Found Zero-point Reactor 38667 | -1/Command | Build established: Generator-Mutant 41397 | -1/Command | Used Subatomic Replicator to replicate AEGIS Remote Shield 42088 | -1/Command | Found Centrium Heavy Armor Plating 42093 | -1/Command | Found Exp. Targeting Computer 42097 | -1/Command | Found Zero-point Reactor 42110 | -1/Command | Found Exp. Armor Integrity Analyzer 43473 | -1/Command | Found Spectral Analyzer 45817 | -1/Command | Warped through subspace to slip node 45817 | -1/Command | Discovered new exit (range 4) 46106 | -1/Command | Destroyed Executioner 46121 | -1/Command | Found Exp. Targeting Computer 46139 | -1/Command | Entered Access_0 46139 | -1/Access_0 | Accompanied by 2 allies 46141 | -1/Access_0 | Met Architect 46152 | -1/Access_0 | Architect warped through subspace 46170 | -1/Access_0 | Destroyed A8 46197 | -1/Access_0 | Architect warped through subspace 46210 | -1/Access_0 | Destroyed 7 combat bots 46213 | -1/Access_0 | Found Exp. Phase Shifter 46221 | -1/Access_0 | Found Exp. Weapon Cycler 46228 | -1/Access_0 | Architect warped through subspace 46256 | -1/Access_0 | Architect warped through subspace 46276 | -1/Access_0 | Architect warped through subspace 46299 | -1/Access_0 | Architect warped through subspace 46317 | -1/Access_0 | Architect warped through subspace 46335 | -1/Access_0 | Architect warped through subspace 46361 | -1/Access_0 | Architect warped through subspace 46378 | -1/Access_0 | Architect warped through subspace 46394 | -1/Access_0 | Subspace Access Node disabled 46401 | -1/Access_0 | Architect warped through subspace 46418 | -1/Access_0 | Architect warped through subspace 46449 | -1/Access_0 | Architect warped through subspace 46475 | -1/Access_0 | A6 warped into view 46485 | -1/Access_0 | Destroyed A6 46488 | -1/Access_0 | Architect warped through subspace 46502 | -1/Access_0 | Subspace Access Node disabled 46529 | -1/Access_0 | Architect warped through subspace 46567 | -1/Access_0 | Architect warped through subspace 46602 | -1/Access_0 | Architect warped through subspace 46605 | -1/Access_0 | Destroyed A2 46621 | -1/Access_0 | Extracted Singularity Gate Test 138-C access codes from A2's data core 46683 | -1/Access_0 | Architect warped through subspace 46747 | -1/Access_0 | Architect warped through subspace 46755 | -1/Access_0 | Started Test 138-B, establishing a local singularity 46755 | -1/Access_0 | Started Test 138-C, cascade imminent 46755 | *** | Destroyed Tau Ceti IV! Last Messages --------------- 46754_ Microwarped (distance 7). 46755_ Connecting with Gate Controls... 46755_ Current location identified: Access_0 >>Gate Test 138-A Running Singularity Gate diagnostics... All systems nominal. >>Gate Test 138-B Preparing Singularity Gate activation... Stable singularity established. >>Gate Test 138-C Initiating Test 138-C... Warning: Experimental formulas incomplete. Potential effects include instability. Repeat command to confirm test. 46755_ Connecting with Gate Controls... >>Gate Test 138-C Initiating Test 138-C... Applying incomplete calculations.... INSTABILITY DETECTED, CASCADE IMMINENT. [Achievement: Stardust] Map ----- +----------------------------------------------------+ | ##?#?#?###"][=" " "#! ! != ! "#############? | | ?#??######""""" " ! # ####!=! ###########?## | | ##??#?##????####"# #?#!! ############# | | ##????##?####### " ###]! ####"#####"## | | ?#####?############ "# ""### """"" "" | | ?##?######?#?###### "" # ##""## " | | ?#?###?####?###### #### #### | | ?#?####?#####?## ## ##### | | ##????###?###?## ## ##### ####"" " | | ??#?####?##??### ## ?### ##?###"" """"" "" | | ###?#########??## ## ?## ########"#####"## | | #??#???#?##??##?## ######## ##?#######?###### | | ####??############ ######## ####?########?### | | ?###?#??####?""""" """""#?# #?####?###### | | ?####?####?###"""" """"#### ##########?#? | | ?##?#####?#?##" "######## ######?####?# | | ##??######?##"" ""####### ##########?#? | | ??###??######"" ""######? #########?### | | ?#?##?#?#??###" "######## ?##?#####?#### | | ?????#?#####?#" "##?#?#?# ?##?##?###??# | | ???????#?#??##" "######## ??###?######## | | ?????????#??##" "#?###### ? ???##?##### | | ?????????##?##" "######## ###?#?###?# | | ?????#???????"" ""#?#???# ##????#?#?## | | ?????????????"" ""####?? ? ##?####?#### | | ?????????#???#" @"##?# ?? ?######?#?### | | ???#??????????"""" A""#????? ? ?? ##?#####??# | | ??????????????"""" """""##??? ?? ??#??####?? | | ???????????#???### ######?#??? ?? #####?#####? | | ????#????#???????# ????#????????? #??#??#??##? | | ??#????????????? ?????????????? #??#?#????## | | ??????????????? ??????????????????????????#? | | ??????????????? ? ?#?????????????????#?????????? | | ????????????????????????#??????#?????????????????? | | ??????????????? ??? ?????????????????????????????? | | ?????????????#???????????#???????????????????????? | | ???????????????#?????????????????????????????????? | | ????????????????????????????????????????????##???? | | ?????????????????????????????????????????????????? | | ???????????????????????????????#?#???????????????? | | ???????????????????????????#?????????????????????? | | ????????????????????? ????#??????????????????????? | | ?????????????????????????????????????????????????? | | ?????????????????????????????????????????????????? | | ?????????????????????????????????????????????????? | | ?????????????????????????????????????????????????? | | ???????????????????????? ????????????????????????? | | ?????????????????????????????????##??????????????? | | ?????????????????????????????????????????????????? | | ?????????????????????????????????????????????????? | +----------------------------------------------------+ Best States ------------- Heat Dissipation 172 Coolant Potential 120 Energy Generation 113 Energy Capacity 1600 Matter Stores 300 Matter Capacity 300 Sight Range 24 Terrain Scan Range 24 Terrain Scan Density 210 Jamming Range 14 Cloak Strength 4 EM Shielding 4 Armor Coverage 2400 Resistance: KI 30 Resistance: TH 50 Resistance: EM 75 Utility Shielding 66 Weapon Cycling 30 Phase Shifting 20 Evasion (%) 60 Targeting Accuracy 36 Core Analysis 12 Armor Integrity Analysis 50 Recoil Reduction 6 Kinecelleration 50 Offensive Hacking 14 Defensive Hacking 14 Relay Coupler Types 6 Relay Coupler Value 300 Authchip Count 1 Item Schematics ----------------- Huge Storage Unit | -10/Materials | Hacked Arm. Wheel | -9/Materials | Scanalyzed Enh. Armored Heavy Treads | -2/Section 7 | Archive Exp. Coolant Injector | -2/Section 7 | Archive Exp. Heat Sink | -2/Section 7 | Archive Vibroblade | -2/Section 7 | Archive Robot Schematics ------------------ M-13 Machinist | -10/Materials | Hacked R-10 Processor | -2/Section 7 | Archive M-36 Artificer | -2/Section 7 | Archive Fabricated ------------ M-13 Machinist | x1 | -6/Factory | Authchip M-13 Machinist | x1 | -4/Factory | Authchip Alien Tech Used ----------------- Sigix Broadsword Phase Armor LRC Energy Well LRC Armor Integrated Reactor Integrated Dissipator Spacefold Activator Transdimensional Reconstructor Subatomic Replicator Microwarp Drive Achievements -------------- Stardust Challenges ------------ None Game ------ Seed SwarmActiveBoregun Manual? 0 Play Time 07:11:58 Cumulative 703.7 hours Start 2022.11.27 @ 22:12:53 End 2022.11.30 @ 00:31:00 Sessions 9 Manual Loads 0 Difficulty Rogue Special Mode None Game No. 629 Rogue 629 Adventurer 0 Explorer 0 Win Type 5 Total 31 Types 13/5/5/1/1/1/4/1/0 Lore% 91 Gallery% 96 Achievement% 80 Wizard Run 0 Options --------- ASCII 0 Keyboard 0 Movement Mouse Keybinds 1 Fullscreen 2 Font 24/Smallcaps Map View 76x50 Tactical HUD 1 Map Filters NONE Filters NONE Steam 1 RUN: 87d41cf1-1bca-4873-99c6-002700430f3f